{"text_format":"1","workbook":"xlsx","n_sheets":20,"sheets":["COVER","REQUEST","SUMMARY","A-Instructions","A-Form","B-Instructions","B-Form","C1-Instructions","C1-Form","C2","D","E","F","G","H ","H1","I","J","K","Sheet3"],"not_rendered":{"charts":0,"images":1,"macros":1,"external_links":0,"defined_names":4,"comments":0,"pivot_tables":0},"unopened":[],"bounds":{"document_bytes":16777216,"sheet_cells":100000,"rows_first":2000,"rows_last":500,"rows_between":2000,"halvings":0,"cell_chars":16384,"cell_head_chars":4096},"cells_cut":0,"cells_raw":0,"read":"whole","date_system":"1900"}

{"sheet":"COVER","index":0,"n_rows":34,"n_cols":1,"rows_kept":34,"cut":false,"hidden":false,"merged":[[33,0,33,9],[0,0,0,9],[5,0,5,9],[27,0,27,9],[28,0,28,9],[29,0,29,9],[30,0,30,9],[31,0,31,9],[32,0,32,9],[1,0,1,9],[2,0,2,9],[3,0,3,9],[4,0,4,9],[6,0,26,9]]}
["GUIDELINES FOR REIMBURSEMENT "]
["OF"]
["STATE-FUNDED EXPENSES "]
["FOR"]
["PRIMARY RUNOFF ELECTIONS"]
["(Effective November 7, 1995; Revised June, 2022)"]
[]
[]
[]
[]
[]
[]
[]
[]
[]
[]
[]
[]
[]
[]
[]
[]
[]
[]
[]
[]
[]
["STATE BOARD OF ELECTION COMMISSIONERS"]
["501 Woodlane, Suite 122 South"]
["Little Rock, Arkansas 72201"]
["(501) 682-1834"]
["(800) 411-6996"]
["www.arkansas.gov/sbec"]
[" info.sbec@arkansas.gov"]

{"sheet":"REQUEST","index":1,"n_rows":60,"n_cols":10,"rows_kept":60,"cut":false,"hidden":false,"merged":[[59,0,59,2],[60,0,60,2],[57,8,57,9],[58,8,58,9],[59,8,59,9],[59,3,59,7],[55,0,55,9],[53,0,53,2],[56,0,56,2],[57,0,57,2],[58,0,58,2],[58,3,58,7],[57,3,57,7],[56,3,56,7],[54,0,54,2],[52,0,52,9],[53,3,53,7],[53,8,53,9],[54,8,54,9],[51,3,51,7],[54,3,54,7],[51,0,51,2],[51,8,51,9],[47,3,47,7],[50,3,50,7],[47,8,47,9],[50,8,50,9],[39,0,39,9],[41,0,41,9],[43,0,43,9],[48,3,48,7],[46,0,46,9],[47,0,47,2],[50,0,50,2],[44,8,44,9],[45,8,45,9],[48,0,48,2],[48,8,48,9],[45,3,45,7],[19,0,19,9],[21,0,21,9],[33,0,33,9],[35,0,35,9],[37,0,37,9],[0,0,0,9],[1,0,1,9],[8,2,8,7],[42,0,42,9],[4,0,4,9],[3,8,3,9],[7,8,7,9],[6,0,6,9],[2,0,2,9],[23,0,23,9],[25,0,25,9],[27,0,27,9],[29,0,29,9],[31,0,31,9],[16,0,16,8],[17,0,17,9],[12,0,12,5],[13,0,13,5],[14,6,14,7],[14,8,14,9],[11,8,11,9],[12,6,12,7],[12,8,12,9],[13,8,13,9],[11,6,11,7],[49,0,49,9],[3,2,3,7],[5,2,5,7],[7,2,7,7],[10,6,10,7],[44,0,44,2],[44,3,44,7],[9,0,9,9],[8,0,8,1],[8,8,8,9],[10,8,10,9],[5,8,5,9],[13,6,13,7],[15,0,15,8],[10,0,10,5],[11,0,11,5]]}
["COUNTY REIMBURSEMENT REQUEST"]
["(Primary Runoff Elections Only)"]
["COMPLETE THE UPPER AND LOWER SECTIONS ONLY. Items 1-12 will automatically post from the \"Summary of Costs\" Sheet."]
["COUNTY:    "]
[]
["ELECTION: "]
[]
["CONTACT: "]
[null,null,"(Name, Email & Phone Number of Person(s) Completing Request)"]
[]
["TOTAL NUMBER OF REGISTERED VOTERS:"]
["TOTAL NUMBER OF PRECINCTS:"]
["TOTAL NUMBER OF EARLY VOTING POLLS:"]
["TOTAL NUMBER OF ELECTION DAY POLLS:"]
["TOTAL NUMBER OF ELECTION DAY POLL WORKERS:"]
["Type of Voting Machines (circle each used): Express Vote / DS200 /Central Ct.",null,null,null,null,null,null,null,null,"EXPENSES"]
[null,null,null,null,null,null,null,null,null,"TOTAL"]
[]
["1.  ELECTION DAY POLL WORKERS PAY",null,null,null,null,null,null,"………………………………………..",null,{"$f":"SUMMARY!I10","v":0}]
["               "]
["2.  OFF-SITE EARLY VOTING POLL WORKERS PAY",null,null,null,null,null,null,"…………..……………….",null,{"$f":"SUMMARY!I15","v":0}]
[]
["3.  POLL WORKER TRAINING PAY",null,null,null,null,null,null,"……………..….……………………………….",null,{"$f":"SUMMARY!I20","v":0}]
[]
["4.  EXTRA HELP PAY",null,null,null,null,null,null,"…………………………..……..………………………………..",null,{"$f":"SUMMARY!I31","v":0}]
[]
["5.  MILEAGE EXPENSES",null,null,null,null,null,null,"…………………………..………..………………………….",null,{"$f":"SUMMARY!I37","v":0}]
[]
["6.  ELECTION COMMISSIONERS PAY",null,null,null,null,null,null,"……………………………………………..",null,{"$f":"SUMMARY!I39","v":0}]
[]
["7.  SUPPLY COSTS",null,null,null,null,null,null,"……………………...………..……………..……………………..",null,{"$f":"SUMMARY!I45","v":0}]
[]
["8.  PROGRAMMING COSTS",null,null,null,null,null,null,"………………………………………………………….",null,{"$f":"SUMMARY!I55","v":0}]
[]
["9.  BALLOT PRINTING COSTS",null,null,null,null,null,null,"……………………………………………………..",null,{"$f":"SUMMARY!I61","v":0}]
[]
["10.  LEGAL ADVERTISING COSTS",null,null,null,null,null,null,"…………………………………………………",null,{"$f":"SUMMARY!I69","v":0}]
[]
["11.  FACILITY FEES",null,null,null,null,null,null,"………………………….…….…...……….…….………………..",null,{"$f":"SUMMARY!I74","v":0}]
[]
["12. GRAND TOTALS",null,null,null,null,null,null,"………………………..……………….…………………………..",null,{"$f":"J19+J21+J23+J25+J27+J29+J31+J33+J35+J37+J39","v":0}]
[]
["I verify that these expenses have been approved by the County Board of Election Commissioners for the above referenced election and that all figures are accurate and appropriate to the best of my knowledge.  "]
[]
["Signature:"]
["                                                                               County Election Commission Chair",null,null,"Person(s) Completing the Request"]
[]
["Signature:"]
[null,null,null,"County Election Commission Chair"]
[]
["Signature:"]
[null,null,null,"County Election Commissioner"]
[]
["Signature (optional):"]
[null,null,null,"County Election Commissioner"]
["***If form is not received within 6 months of the primary runoff date notices of such will be sent to county clerks, judges and treasurers."]
["RETURN BY:"]
["TO:",null,null," BOARD OF ELECTION COMMISSIONERS"]
[null,null,null,"501 Woodlane, Suite 122S, Little Rock, AR  72201"]
[null,null,null,"(501) 682-1834 OR (800) 411-6996"]

{"sheet":"SUMMARY","index":2,"n_rows":76,"n_cols":9,"rows_kept":76,"cut":false,"hidden":false,"merged":[[74,0,74,12],[75,0,75,7],[69,0,69,12],[70,0,70,12],[71,1,71,7],[72,1,72,7],[73,1,73,7],[71,9,71,12],[72,9,72,12],[61,0,61,12],[62,0,62,12],[63,1,63,7],[63,9,63,12],[64,1,64,7],[65,1,65,7],[73,9,73,11],[66,1,66,7],[67,1,67,7],[68,1,68,7],[64,9,64,12],[65,9,65,12],[66,9,66,12],[67,9,67,12],[68,9,68,11],[55,0,55,12],[56,0,56,12],[57,1,57,7],[58,1,58,7],[59,1,59,7],[60,1,60,7],[57,9,57,12],[59,9,59,12],[58,9,58,12],[60,9,60,11],[45,0,45,12],[46,0,46,12],[47,1,47,7],[48,1,48,7],[49,1,49,7],[50,1,50,7],[51,1,51,7],[53,1,53,7],[54,1,54,7],[47,9,47,12],[48,9,48,12],[49,9,49,12],[50,9,50,12],[51,9,51,12],[53,9,53,12],[54,9,54,11],[52,1,52,7],[42,1,42,7],[38,0,38,7],[43,1,43,7],[44,1,44,7],[41,9,41,12],[42,9,42,12],[43,9,43,12],[44,9,44,11],[41,1,41,7],[40,0,40,12],[39,0,39,12],[35,9,35,12],[32,0,32,12],[24,9,24,12],[23,1,23,7],[19,1,19,7],[22,9,22,12],[23,9,23,12],[20,0,20,12],[38,9,38,11],[36,9,36,11],[37,0,37,12],[34,9,34,12],[22,1,22,7],[27,11,27,12],[28,11,28,12],[29,11,29,12],[36,1,36,7],[35,1,35,7],[27,1,27,7],[28,1,28,7],[34,1,34,7],[25,9,25,12],[31,0,31,12],[26,9,26,12],[33,1,33,7],[26,1,26,7],[25,1,25,7],[33,9,33,12],[24,1,24,7],[21,0,21,12],[29,1,29,7],[30,1,30,7],[18,9,18,12],[19,9,19,11],[18,1,18,7],[12,1,12,7],[0,0,0,8],[1,0,1,8],[3,4,3,12],[17,1,17,7],[3,0,3,1],[13,1,13,7],[14,1,14,7],[3,2,3,3],[7,0,7,7],[12,9,12,12],[6,0,6,12],[13,11,13,12],[4,0,4,7],[15,0,15,12],[16,0,16,12],[11,0,11,12],[17,9,17,12],[2,0,2,12],[7,9,7,11]]}
["SUMMARY OF COSTS"]
["(For Primary Runoff Elections)                                                                                                                                                                                          If reimbursement is not received 6 months after primary runoff notice will be sent to the county judge, clerk & treasurer."]
["NO DATA ENTRY REQUIRED. This sheet will automatically post from the Attachments that follow."]
["COUNTY: ",null,{"$f":"REQUEST!C4","v":0}]
[null,null,null,null,null,null,null,null,"EXPENSES"]
[null,null,null,null,null,null,null,null,"TOTAL"]
[]
["1.  ELECTION DAY POLL WORKERS PAY (ATTACHMENT \"A\" Section 2)",null,null,null,null,null,null,null,{"$f":"'A-Form'!F503","v":0}]
[null,"a)  Election Judge pay",null,null,null,null,null,null,{"$f":"'A-Form'!H503","v":0}]
[null,"b) Total",null,null,null,null,null,null,{"$f":"SUM(I8:I9)","v":0}]
[]
["2.  OFF-SITE EARLY VOTING POLL WORKERS PAY "]
[null,"a) Regular Wages (ATTACHMENT \"B\" Section 3)",null,null,null,null,null,null,{"$f":"'B-Form'!G104","v":0}]
[null,"b) Overtime Wages Required by Law (ATTACHMENT \"B\" Section 4)",null,null,null,null,null,null,{"$f":"'B-Form'!J104","v":0}]
[null,"c) Total",null,null,null,null,null,null,{"$f":"I13+I14","v":0}]
[]
["3.  POLL WORKER TRAINING PAY: "]
[null,"a) Election Day Poll Workers (ATTACHMENT \"A\" Section 3)",null,null,null,null,null,null,{"$f":"'A-Form'!G503","v":0}]
[null,"b) Off-Site Early Voting Poll Workers (ATTACHMENT \"B\" Section 2)",null,null,null,null,null,null,{"$f":"'B-Form'!D104","v":0}]
[null,"c) Total",null,null,null,null,null,null,{"$f":"I18+I19","v":0}]
[]
["4.  EXTRA HELP PAY:"]
[null,"a) Election Day PWs Material Delivery/Return (ATTACHMENT \"A\" Section 4)",null,null,null,null,null,null,{"$f":"'A-Form'!K503","v":0}]
[null,"b) Designated Workers Material Delivery (ATTACHMENT \"C1\" Section 2)",null,null,null,null,null,null,{"$f":"'C1-Form'!F23","v":0}]
[null,"c) Absentee Ballot Processing (ATTACHMENT \"C1\" Section 5)",null,null,null,null,null,null,{"$f":"'C1-Form'!F44","v":0}]
[null,"d) Central Vote Tabulating (ATTACHMENT \"C1\" Section 7)",null,null,null,null,null,null,{"$f":"'C1-Form'!M44","v":0}]
[null,"e) County Clerk Extra Deputy Regular Wages (ATTACHMENT \"C1\" Section 9)",null,null,null,null,null,null,{"$f":"'C1-Form'!F53","v":0}]
[null,"f) County Clerk Extra Deputy Overtime Wages (ATTACHMENT \"C1\" Section 10)",null,null,null,null,null,null,{"$f":"'C1-Form'!J51","v":0}]
[null,"g) Designated Workers Material Preparation (ATTACHMENT \"C2\" Section 2)",null,null,null,null,null,null,{"$f":"'C2'!E25","v":0}]
[null,"h) Designated Workers Material Storage (ATTACHMENT \"C2\" Section 4)",null,null,null,null,null,null,{"$f":"'C2'!K25","v":0}]
[null,"i) Total",null,null,null,null,null,null,{"$f":"I23+I24+I25+I26+I27+I28+I29+I30","v":0}]
[]
["5.  MILEAGE EXPENSES:"]
[null,"a) Election Day PWs Material Delivery/Return (ATTACHMENT \"A\" Section 5)",null,null,null,null,null,null,{"$f":"'A-Form'!N503","v":0}]
[null,"b) Off-Site Early Voting PWs Material Delivery/Return (ATTACHMENT \"B\" Section 5)",null,null,null,null,null,null,{"$f":"'B-Form'!M104","v":0}]
[null,"c) Designated Workers Material Delivery (ATTACHMENT \"C1\" Section 3)",null,null,null,null,null,null,{"$f":"'C1-Form'!J23","v":0}]
[null,"d) Total",null,null,null,null,null,null,{"$f":"SUM(I34:I36)","v":0}]
[]
["6.  ELECTION COMMISSIONERS PAY (ATTACHMENT \"D\" Section 2)",null,null,null,null,null,null,null,{"$f":"D!I13:J13","v":0}]
[]
["7.  SUPPLY COSTS:"]
[null,"a) Funding Allowance  (ATTACHMENT \"E\")",null,null,null,null,null,null,{"$f":"E!G20:G20","v":"N/A"}]
[null,"b) County Clerk Absentee (ATTACHMENT \"F\")",null,null,null,null,null,null,{"$f":"F!H21","v":0}]
[null,"c) County Election Commission (ATTACHMENT \"G\")",null,null,null,null,null,null,{"$f":"G!H35","v":0}]
[null,"d) Total",null,null,null,null,null,null,{"$f":"I43+I44","v":0}]
[]
["8.  PROGRAMMING COSTS:"]
[null,"a) Coding (ATTACHMENT \"H\" Section 2)",null,null,null,null,null,null,{"$f":"'H '!I27","v":0}]
[null,"b) Audio (ATTACHMENT \"H\" Section 3)",null,null,null,null,null,null,{"$f":"'H '!I32","v":0}]
[null,"c) Technical Support (ATTACHMENT \"H\" Section 4)",null,null,null,null,null,null,{"$f":"'H '!I37","v":0}]
[null,"d) Equipment Testing (ATTACHMENT \"H1\" Section 5)",null,null,null,null,null,null,{"$f":"'H1'!F26","v":0}]
[null,"e) Equipment Transport Wages(ATTACHMENT \"H1\" Section 6)",null,null,null,null,null,null,{"$f":"'H1'!M26","v":0}]
[null,"f) Equipment Transport Mileage (ATTACHMENT \"H1\" Section 7)",null,null,null,null,null,null,{"$f":"'H1'!P26","v":0}]
[null,"g) Truck Rental (ATTACHMENT \"H1\" Section 8)",null,null,null,null,null,null,{"$f":"'H1'!M42","v":0}]
[null,"h) Total",null,null,null,null,null,null,{"$f":"I48+I49+I50+I51+I52+I53+I54","v":0}]
[]
["9.  BALLOT PRINTING COSTS:"]
[null,"a) Ballot Code Stock Purchase (ATTACHMENT \"I\" Section 2)",null,null,null,null,null,null,{"$f":"I!N19","v":0}]
[null,"b) Ballot Layout (ATTACHMENT \"I\" Section 3)",null,null,null,null,null,null,{"$f":"I!N24","v":0}]
[null,"c) Ballot Printing (ATTACHMENT \"I\" Section 4)",null,null,null,null,null,null,{"$f":"I!N31","v":0}]
[null,"d) Total",null,null,null,null,null,null,{"$f":"I58+I59+I60","v":0}]
[]
["10.  LEGAL ADVERTISING COSTS "]
[null,"a) Public Notice of Ballot Position Drawing (ATTACHMENT \"J\" Section 1)",null,null,null,null,null,null,{"$f":"J!J13","v":0}]
[null,"b) First Public Notice of the Election (ATTACHMENT \"J\" Section 2)",null,null,null,null,null,null,{"$f":"J!J22","v":0}]
[null,"c) Second Public Notice of the Election (ATTACHMENT \"J\" Section 3)",null,null,null,null,null,null,{"$f":"J!J31","v":0}]
[null,"d) Public Notice of Voting Equipment Preparation (ATTACHMENT \"J\" Section 4)",null,null,null,null,null,null,{"$f":"J!J40","v":0}]
[null,"e) Public Notice of Voting Equipment Testing (ATTACHMENT \"J\" Section 5)",null,null,null,null,null,null,{"$f":"J!J49","v":0}]
[null,"f) Total",null,null,null,null,null,null,{"$f":"I64+I65+I66+I67+I68","v":0}]
[]
["11.  FACILITY FEES "]
[null,"a) Off-Site Early Voting (ATTACHMENT \"K\" Section 1)",null,null,null,null,null,null,{"$f":"K!I20","v":0}]
[null,"b) Election Day (ATTACHMENT \"K\" Section 2)",null,null,null,null,null,null,{"$f":"K!I27","v":0}]
[null,"c) Total",null,null,null,null,null,null,{"$f":"I72+I73","v":0}]
[]
["12. GRAND TOTALS",null,null,null,null,null,null,null,{"$f":"I10+I15+I20+I31+I37+I39+I45+I55+I61+I69+I74","v":0}]

{"sheet":"A-Instructions","index":3,"n_rows":25,"n_cols":3,"rows_kept":25,"cut":false,"hidden":false,"merged":[[26,0,26,10],[10,0,10,10],[12,0,12,10],[14,0,14,10],[18,0,18,10],[24,0,24,10],[13,0,13,10],[22,0,22,10],[0,0,0,10],[6,0,6,10],[4,2,4,3],[1,0,1,10],[8,0,8,10],[2,0,2,10],[3,0,3,10],[4,4,4,10],[5,0,5,10],[7,0,7,10],[9,0,9,10],[11,0,11,10],[17,0,17,10],[19,0,19,10],[21,0,21,10],[20,0,20,10],[15,0,15,10]]}
["ELECTION DAY POLL WORKERS PAY "]
[]
["ATTACHMENT “A” for Primary Runoff Elections "]
[]
["COUNTY: ",null,{"$f":"REQUEST!C4","v":0}]
[]
["Attachment “A” contains tables for listing the names of the poll workers who worked at a polling site on election day. The tables are used to record payment for working at a polling site on election day, to record, where applicable, payment for attending poll worker training conducted before the election by the county's State Board-certified trainer, any extra wages earned by the poll workers delivering and returning materials to and from their poll, along with their corresponding mileage expenses related to the delivery and return of materials. A county may use other formats for submitting the information sought on this attachment."]
[]
["INSTRUCTIONS:"]
["Section 1: List the names of poll workers who worked at a polling site on election day.  DO NOT INCLUDE off-site early voting poll workers or extra help on this attachment."]
[]
["Section 2: Record the hours (or fraction of an hour) worked by each poll worker up to a maximum of 14 hours.  A.C.A. 7-4-112 requires that poll workers be paid a minimum of the prevailing minimum wage. Wages will automatically calculate at the current state minimum wage of $11.00 hourly."]
[]
["Section 3: The $35 or $55 payments for attending poll worker training is ONLY applicable to preferential primary elections."]
[]
["Section 4:  Record any additional payment made to election judges. Counties are eligible to receive reimbursment not to exceed $25 in additional compensation for one election judge per poll."]
[]
["Section 5: Record the hours (or fraction of an hour) worked by the poll workers delivering and/or returning materials to and from their poll on election day. A.C.A. 7-4-112 requires that they be paid a minimum of the prevailing minimum wage. Wages will automatically calculate at the current state minimum wage of $11.00 hourly."]
[]
["Section 6: Record the number of miles traveled by the poll workers delivering and/or returning materials to and from their poll on election day. Record the rate at which the poll workers were paid by the county up to a maximum of $.52 per mile.  A.C.A. 7-4-112 requires that they receive no more than the maximum rate prescribed by law for state employees by state travel regulations.  Mileage expense will automatically calculate."]
[]
["Each “TOTAL\" will automatically calculate at the bottom of the last page of Attachment “A”.  Each \"TOTAL\" on Attachment \"A\" will then automatically post on the appropriate lines on the “SUMMARY OF COSTS” worksheet. The totals on the \"SUMMARY OF COSTS\" worksheet will, in turn, automatically post on the appropriate lines on the \"COUNTY REIMBURSEMENT REQUEST\" worksheet."]
[]
[]
["RETURN ATTACHMENT “A” WITH THE COUNTY'S REIMBURSEMENT REQUEST"]

{"sheet":"A-Form","index":4,"n_rows":506,"n_cols":14,"rows_kept":506,"cut":false,"hidden":false,"merged":[[502,1,503,2],[134,1,134,2],[135,1,135,2],[136,1,136,2],[137,1,137,2],[132,1,132,2],[133,1,133,2],[141,1,141,2],[142,1,142,2],[143,1,143,2],[150,1,150,2],[151,1,151,2],[152,1,152,2],[153,1,153,2],[154,1,154,2],[155,1,155,2],[144,1,144,2],[145,1,145,2],[146,1,146,2],[147,1,147,2],[148,1,148,2],[149,1,149,2],[162,1,162,2],[163,1,163,2],[1,1,1,13],[2,6,2,13],[3,0,3,13],[140,1,140,2],[124,1,124,2],[125,1,125,2],[126,1,126,2],[127,1,127,2],[138,1,138,2],[139,1,139,2],[113,1,113,2],[114,1,114,2],[115,1,115,2],[116,1,116,2],[117,1,117,2],[128,1,128,2],[129,1,129,2],[130,1,130,2],[131,1,131,2],[118,1,118,2],[119,1,119,2],[120,1,120,2],[121,1,121,2],[122,1,122,2],[123,1,123,2],[105,1,105,2],[104,1,104,2],[106,1,106,2],[107,1,107,2],[108,1,108,2],[109,1,109,2],[110,1,110,2],[111,1,111,2],[112,1,112,2],[95,1,95,2],[96,1,96,2],[97,1,97,2],[98,1,98,2],[99,1,99,2],[100,1,100,2],[101,1,101,2],[102,1,102,2],[103,1,103,2],[86,1,86,2],[87,1,87,2],[88,1,88,2],[89,1,89,2],[90,1,90,2],[91,1,91,2],[93,1,93,2],[92,1,92,2],[94,1,94,2],[77,1,77,2],[78,1,78,2],[79,1,79,2],[80,1,80,2],[81,1,81,2],[82,1,82,2],[83,1,83,2],[84,1,84,2],[85,1,85,2],[68,1,68,2],[69,1,69,2],[70,1,70,2],[71,1,71,2],[72,1,72,2],[73,1,73,2],[74,1,74,2],[75,1,75,2],[76,1,76,2],[59,1,59,2],[60,1,60,2],[61,1,61,2],[62,1,62,2],[63,1,63,2],[64,1,64,2],[65,1,65,2],[66,1,66,2],[67,1,67,2],[50,1,50,2],[51,1,51,2],[52,1,52,2],[53,1,53,2],[54,1,54,2],[55,1,55,2],[56,1,56,2],[57,1,57,2],[58,1,58,2],[41,1,41,2],[42,1,42,2],[43,1,43,2],[44,1,44,2],[45,1,45,2],[46,1,46,2],[47,1,47,2],[48,1,48,2],[49,1,49,2],[32,1,32,2],[33,1,33,2],[34,1,34,2],[35,1,35,2],[36,1,36,2],[37,1,37,2],[38,1,38,2],[39,1,39,2],[40,1,40,2],[23,1,23,2],[24,1,24,2],[25,1,25,2],[26,1,26,2],[27,1,27,2],[28,1,28,2],[29,1,29,2],[30,1,30,2],[31,1,31,2],[4,8,4,10],[4,11,4,13],[504,1,504,13],[0,1,0,13],[4,1,4,2],[5,1,5,2],[6,1,6,2],[7,1,7,2],[2,2,2,5],[8,1,8,2],[9,1,9,2],[10,1,10,2],[11,1,11,2],[12,1,12,2],[13,1,13,2],[14,1,14,2],[15,1,15,2],[16,1,16,2],[17,1,17,2],[18,1,18,2],[19,1,19,2],[20,1,20,2],[21,1,21,2],[22,1,22,2],[164,1,164,2],[165,1,165,2],[166,1,166,2],[167,1,167,2],[156,1,156,2],[157,1,157,2],[158,1,158,2],[159,1,159,2],[160,1,160,2],[161,1,161,2],[174,1,174,2],[175,1,175,2],[176,1,176,2],[177,1,177,2],[178,1,178,2],[179,1,179,2],[168,1,168,2],[169,1,169,2],[170,1,170,2],[171,1,171,2],[172,1,172,2],[173,1,173,2],[186,1,186,2],[187,1,187,2],[188,1,188,2],[189,1,189,2],[190,1,190,2],[191,1,191,2],[180,1,180,2],[181,1,181,2],[182,1,182,2],[183,1,183,2],[184,1,184,2],[185,1,185,2],[198,1,198,2],[199,1,199,2],[200,1,200,2],[201,1,201,2],[202,1,202,2],[203,1,203,2],[192,1,192,2],[193,1,193,2],[194,1,194,2],[195,1,195,2],[196,1,196,2],[197,1,197,2],[210,1,210,2],[211,1,211,2],[212,1,212,2],[213,1,213,2],[214,1,214,2],[215,1,215,2],[204,1,204,2],[205,1,205,2],[206,1,206,2],[207,1,207,2],[208,1,208,2],[209,1,209,2],[222,1,222,2],[223,1,223,2],[224,1,224,2],[225,1,225,2],[226,1,226,2],[227,1,227,2],[216,1,216,2],[217,1,217,2],[218,1,218,2],[219,1,219,2],[220,1,220,2],[221,1,221,2],[234,1,234,2],[235,1,235,2],[236,1,236,2],[237,1,237,2],[238,1,238,2],[239,1,239,2],[228,1,228,2],[229,1,229,2],[230,1,230,2],[231,1,231,2],[232,1,232,2],[233,1,233,2],[246,1,246,2],[247,1,247,2],[248,1,248,2],[249,1,249,2],[250,1,250,2],[251,1,251,2],[240,1,240,2],[241,1,241,2],[242,1,242,2],[243,1,243,2],[244,1,244,2],[245,1,245,2],[258,1,258,2],[259,1,259,2],[260,1,260,2],[261,1,261,2],[262,1,262,2],[263,1,263,2],[252,1,252,2],[253,1,253,2],[254,1,254,2],[255,1,255,2],[256,1,256,2],[257,1,257,2],[270,1,270,2],[271,1,271,2],[272,1,272,2],[273,1,273,2],[274,1,274,2],[275,1,275,2],[264,1,264,2],[265,1,265,2],[266,1,266,2],[267,1,267,2],[268,1,268,2],[269,1,269,2],[282,1,282,2],[283,1,283,2],[284,1,284,2],[285,1,285,2],[286,1,286,2],[287,1,287,2],[276,1,276,2],[277,1,277,2],[278,1,278,2],[279,1,279,2],[280,1,280,2],[281,1,281,2],[294,1,294,2],[295,1,295,2],[296,1,296,2],[297,1,297,2],[298,1,298,2],[299,1,299,2],[288,1,288,2],[289,1,289,2],[290,1,290,2],[291,1,291,2],[292,1,292,2],[293,1,293,2],[306,1,306,2],[307,1,307,2],[308,1,308,2],[309,1,309,2],[310,1,310,2],[311,1,311,2],[300,1,300,2],[301,1,301,2],[302,1,302,2],[303,1,303,2],[304,1,304,2],[305,1,305,2],[318,1,318,2],[319,1,319,2],[320,1,320,2],[321,1,321,2],[322,1,322,2],[323,1,323,2],[312,1,312,2],[313,1,313,2],[314,1,314,2],[315,1,315,2],[316,1,316,2],[317,1,317,2],[330,1,330,2],[331,1,331,2],[332,1,332,2],[333,1,333,2],[334,1,334,2],[335,1,335,2],[324,1,324,2],[325,1,325,2],[326,1,326,2],[327,1,327,2],[328,1,328,2],[329,1,329,2],[342,1,342,2],[343,1,343,2],[344,1,344,2],[345,1,345,2],[346,1,346,2],[347,1,347,2],[336,1,336,2],[337,1,337,2],[338,1,338,2],[339,1,339,2],[340,1,340,2],[341,1,341,2],[354,1,354,2],[355,1,355,2],[356,1,356,2],[357,1,357,2],[358,1,358,2],[359,1,359,2],[348,1,348,2],[349,1,349,2],[350,1,350,2],[351,1,351,2],[352,1,352,2],[353,1,353,2],[366,1,366,2],[367,1,367,2],[368,1,368,2],[369,1,369,2],[370,1,370,2],[371,1,371,2],[360,1,360,2],[361,1,361,2],[362,1,362,2],[363,1,363,2],[364,1,364,2],[365,1,365,2],[378,1,378,2],[379,1,379,2],[380,1,380,2],[381,1,381,2],[382,1,382,2],[383,1,383,2],[372,1,372,2],[373,1,373,2],[374,1,374,2],[375,1,375,2],[376,1,376,2],[377,1,377,2],[390,1,390,2],[391,1,391,2],[392,1,392,2],[393,1,393,2],[394,1,394,2],[395,1,395,2],[384,1,384,2],[385,1,385,2],[386,1,386,2],[387,1,387,2],[388,1,388,2],[389,1,389,2],[402,1,402,2],[403,1,403,2],[404,1,404,2],[405,1,405,2],[406,1,406,2],[407,1,407,2],[396,1,396,2],[397,1,397,2],[398,1,398,2],[399,1,399,2],[400,1,400,2],[401,1,401,2],[414,1,414,2],[415,1,415,2],[416,1,416,2],[417,1,417,2],[418,1,418,2],[419,1,419,2],[408,1,408,2],[409,1,409,2],[410,1,410,2],[411,1,411,2],[412,1,412,2],[413,1,413,2],[426,1,426,2],[427,1,427,2],[428,1,428,2],[429,1,429,2],[430,1,430,2],[431,1,431,2],[420,1,420,2],[421,1,421,2],[422,1,422,2],[423,1,423,2],[424,1,424,2],[425,1,425,2],[438,1,438,2],[439,1,439,2],[440,1,440,2],[441,1,441,2],[442,1,442,2],[443,1,443,2],[432,1,432,2],[433,1,433,2],[434,1,434,2],[435,1,435,2],[436,1,436,2],[437,1,437,2],[450,1,450,2],[451,1,451,2],[452,1,452,2],[453,1,453,2],[454,1,454,2],[455,1,455,2],[444,1,444,2],[445,1,445,2],[446,1,446,2],[447,1,447,2],[448,1,448,2],[449,1,449,2],[462,1,462,2],[463,1,463,2],[464,1,464,2],[465,1,465,2],[466,1,466,2],[467,1,467,2],[456,1,456,2],[457,1,457,2],[458,1,458,2],[459,1,459,2],[460,1,460,2],[461,1,461,2],[474,1,474,2],[475,1,475,2],[476,1,476,2],[477,1,477,2],[478,1,478,2],[479,1,479,2],[468,1,468,2],[469,1,469,2],[470,1,470,2],[471,1,471,2],[472,1,472,2],[473,1,473,2],[4,3,4,5],[505,1,506,13],[498,1,498,2],[499,1,499,2],[500,1,500,2],[501,1,501,2],[492,1,492,2],[493,1,493,2],[494,1,494,2],[495,1,495,2],[496,1,496,2],[497,1,497,2],[486,1,486,2],[487,1,487,2],[488,1,488,2],[489,1,489,2],[490,1,490,2],[491,1,491,2],[480,1,480,2],[481,1,481,2],[482,1,482,2],[483,1,483,2],[484,1,484,2],[485,1,485,2]]}
[null,"ELECTION DAY POLL WORKERS PAY"]
[null,"ATTACHMENT “A” for  Primary Runoff Elections "]
[null,"COUNTY: ",{"$f":"REQUEST!C4","v":0}]
[]
[null,"Section 1",null,"Section 2",null,null,"Section 3","Section 4","Section 5",null,null,"Section 6"]
[null,"Names of Election Day",null,"PW PAY",null,null,"TRAINING","ELECTION JUDGE","MATERIAL DELIVERY WAGES",null,null,"MATERIAL DELIVERY MILEAGE"]
[null,"Poll Workers",null,"HOURS","RATE","WAGES","$35/$55",25,"HOURS","RATE","WAGES","MILES","RATE","EXPENSE"]
[1,null,null,null,11,{"$f":"D8*E8","v":0},"N/A",null,null,11,{"$f":"I8*J8","v":0},null,0.52,{"$f":"L8*M8","v":0}]
[2,null,null,null,11,{"$f":"D9*E9","v":0},"N/A",null,null,11,{"$f":"I9*J9","v":0},null,null,{"$f":"L9*M9","v":0}]
[3,null,null,null,11,0,"N/A",null,null,11,0,null,null,0]
[4,null,null,null,11,0,"N/A",null,null,11,0,null,null,0]
[5,null,null,null,11,0,"N/A",null,null,11,0,null,null,0]
[6,null,null,null,11,0,"N/A",null,null,11,0,null,null,0]
[7,null,null,null,11,0,"N/A",null,null,11,0,null,null,0]
[8,null,null,null,11,0,"N/A",null,null,11,0,null,null,0]
[9,null,null,null,11,0,"N/A",null,null,11,0,null,null,0]
[10,null,null,null,11,0,"N/A",null,null,11,0,null,null,0]
[11,null,null,null,11,0,"N/A",null,null,11,0,null,null,0]
[12,null,null,null,11,0,"N/A",null,null,11,0,null,null,0]
[13,null,null,null,11,0,"N/A",null,null,11,0,null,null,0]
[14,null,null,null,11,0,"N/A",null,null,11,0,null,null,0]
[15,null,null,null,11,0,"N/A",null,null,11,0,null,null,0]
[16,null,null,null,11,0,"N/A",null,null,11,0,null,null,0]
[17,null,null,null,11,0,"N/A",null,null,11,0,null,null,0]
[18,null,null,null,11,0,"N/A",null,null,11,0,null,null,0]
[19,null,null,null,11,0,"N/A",null,null,11,0,null,null,0]
[20,null,null,null,11,0,"N/A",null,null,11,0,null,null,0]
[21,null,null,null,11,0,"N/A",null,null,11,0,null,null,0]
[22,null,null,null,11,0,"N/A",null,null,11,0,null,null,0]
[23,null,null,null,11,0,"N/A",null,null,11,0,null,null,0]
[24,null,null,null,11,0,"N/A",null,null,11,0,null,null,0]
[25,null,null,null,11,0,"N/A",null,null,11,0,null,null,0]
[26,null,null,null,11,0,"N/A",null,null,11,0,null,null,0]
[27,null,null,null,11,0,"N/A",null,null,11,0,null,null,0]
[28,null,null,null,11,0,"N/A",null,null,11,0,null,null,0]
[29,null,null,null,11,0,"N/A",null,null,11,0,null,null,0]
[30,null,null,null,11,0,"N/A",null,null,11,0,null,null,0]
[31,null,null,null,11,0,"N/A",null,null,11,0,null,null,0]
[32,null,null,null,11,0,"N/A",null,null,11,0,null,null,0]
[33,null,null,null,11,0,"N/A",null,null,11,0,null,null,0]
[34,null,null,null,11,0,"N/A",null,null,11,0,null,null,0]
[35,null,null,null,11,0,"N/A",null,null,11,0,null,null,0]
[36,null,null,null,11,0,"N/A",null,null,11,0,null,null,0]
[37,null,null,null,11,0,"N/A",null,null,11,0,null,null,0]
[38,null,null,null,11,0,"N/A",null,null,11,0,null,null,0]
[39,null,null,null,11,0,"N/A",null,null,11,0,null,null,0]
[40,null,null,null,11,0,"N/A",null,null,11,0,null,null,0]
[41,null,null,null,11,0,"N/A",null,null,11,0,null,null,0]
[42,null,null,null,11,0,"N/A",null,null,11,0,null,null,0]
[43,null,null,null,11,0,"N/A",null,null,11,0,null,null,0]
[44,null,null,null,11,0,"N/A",null,null,11,0,null,null,0]
[45,null,null,null,11,0,"N/A",null,null,11,0,null,null,0]
[46,null,null,null,11,0,"N/A",null,null,11,0,null,null,0]
[47,null,null,null,11,0,"N/A",null,null,11,0,null,null,0]
[48,null,null,null,11,0,"N/A",null,null,11,0,null,null,0]
[49,null,null,null,11,0,"N/A",null,null,11,0,null,null,0]
[50,null,null,null,11,0,"N/A",null,null,11,0,null,null,0]
[51,null,null,null,11,0,"N/A",null,null,11,0,null,null,0]
[52,null,null,null,11,0,"N/A",null,null,11,0,null,null,0]
[53,null,null,null,11,0,"N/A",null,null,11,0,null,null,0]
[54,null,null,null,11,0,"N/A",null,null,11,0,null,null,0]
[55,null,null,null,11,0,"N/A",null,null,11,0,null,null,0]
[56,null,null,null,11,0,"N/A",null,null,11,0,null,null,0]
[57,null,null,null,11,0,"N/A",null,null,11,0,null,null,0]
[58,null,null,null,11,0,"N/A",null,null,11,0,null,null,0]
[59,null,null,null,11,0,"N/A",null,null,11,0,null,null,0]
[60,null,null,null,11,0,"N/A",null,null,11,0,null,null,0]
[61,null,null,null,11,0,"N/A",null,null,11,0,null,null,0]
[62,null,null,null,11,0,"N/A",null,null,11,0,null,null,0]
[63,null,null,null,11,0,"N/A",null,null,11,0,null,null,0]
[64,null,null,null,11,0,"N/A",null,null,11,0,null,null,0]
[65,null,null,null,11,0,"N/A",null,null,11,0,null,null,0]
[66,null,null,null,11,{"$f":"D73*E73","v":0},"N/A",null,null,11,{"$f":"I73*J73","v":0},null,null,{"$f":"L73*M73","v":0}]
[67,null,null,null,11,0,"N/A",null,null,11,0,null,null,0]
[68,null,null,null,11,0,"N/A",null,null,11,0,null,null,0]
[69,null,null,null,11,0,"N/A",null,null,11,0,null,null,0]
[70,null,null,null,11,0,"N/A",null,null,11,0,null,null,0]
[71,null,null,null,11,0,"N/A",null,null,11,0,null,null,0]
[72,null,null,null,11,0,"N/A",null,null,11,0,null,null,0]
[73,null,null,null,11,0,"N/A",null,null,11,0,null,null,0]
[74,null,null,null,11,0,"N/A",null,null,11,0,null,null,0]
[75,null,null,null,11,0,"N/A",null,null,11,0,null,null,0]
[76,null,null,null,11,0,"N/A",null,null,11,0,null,null,0]
[77,null,null,null,11,0,"N/A",null,null,11,0,null,null,0]
[78,null,null,null,11,0,"N/A",null,null,11,0,null,null,0]
[79,null,null,null,11,0,"N/A",null,null,11,0,null,null,0]
[80,null,null,null,11,0,"N/A",null,null,11,0,null,null,0]
[81,null,null,null,11,0,"N/A",null,null,11,0,null,null,0]
[82,null,null,null,11,0,"N/A",null,null,11,0,null,null,0]
[83,null,null,null,11,0,"N/A",null,null,11,0,null,null,0]
[84,null,null,null,11,0,"N/A",null,null,11,0,null,null,0]
[85,null,null,null,11,0,"N/A",null,null,11,0,null,null,0]
[86,null,null,null,11,0,"N/A",null,null,11,0,null,null,0]
[87,null,null,null,11,0,"N/A",null,null,11,0,null,null,0]
[88,null,null,null,11,0,"N/A",null,null,11,0,null,null,0]
[89,null,null,null,11,0,"N/A",null,null,11,0,null,null,0]
[90,null,null,null,11,0,"N/A",null,null,11,0,null,null,0]
[91,null,null,null,11,0,"N/A",null,null,11,0,null,null,0]
[92,null,null,null,11,0,"N/A",null,null,11,0,null,null,0]
[93,null,null,null,11,0,"N/A",null,null,11,0,null,null,0]
[94,null,null,null,11,0,"N/A",null,null,11,0,null,null,0]
[95,null,null,null,11,0,"N/A",null,null,11,0,null,null,0]
[96,null,null,null,11,0,"N/A",null,null,11,0,null,null,0]
[97,null,null,null,11,0,"N/A",null,null,11,0,null,null,0]
[98,null,null,null,11,0,"N/A",null,null,11,0,null,null,0]
[99,null,null,null,11,0,"N/A",null,null,11,0,null,null,0]
[100,null,null,null,11,0,"N/A",null,null,11,0,null,null,0]
[101,null,null,null,11,0,"N/A",null,null,11,0,null,null,0]
[102,null,null,null,11,0,"N/A",null,null,11,0,null,null,0]
[103,null,null,null,11,0,"N/A",null,null,11,0,null,null,0]
[104,null,null,null,11,0,"N/A",null,null,11,0,null,null,0]
[105,null,null,null,11,0,"N/A",null,null,11,0,null,null,0]
[106,null,null,null,11,0,"N/A",null,null,11,0,null,null,0]
[107,null,null,null,11,0,"N/A",null,null,11,0,null,null,0]
[108,null,null,null,11,0,"N/A",null,null,11,0,null,null,0]
[109,null,null,null,11,0,"N/A",null,null,11,0,null,null,0]
[110,null,null,null,11,0,"N/A",null,null,11,0,null,null,0]
[111,null,null,null,11,0,"N/A",null,null,11,0,null,null,0]
[112,null,null,null,11,0,"N/A",null,null,11,0,null,null,0]
[113,null,null,null,11,0,"N/A",null,null,11,0,null,null,0]
[114,null,null,null,11,0,"N/A",null,null,11,0,null,null,0]
[115,null,null,null,11,0,"N/A",null,null,11,0,null,null,0]
[116,null,null,null,11,0,"N/A",null,null,11,0,null,null,0]
[117,null,null,null,11,0,"N/A",null,null,11,0,null,null,0]
[118,null,null,null,11,0,"N/A",null,null,11,0,null,null,0]
[119,null,null,null,11,0,"N/A",null,null,11,0,null,null,0]
[120,null,null,null,11,0,"N/A",null,null,11,0,null,null,0]
[121,null,null,null,11,0,"N/A",null,null,11,0,null,null,0]
[122,null,null,null,11,0,"N/A",null,null,11,0,null,null,0]
[123,null,null,null,11,0,"N/A",null,null,11,0,null,null,0]
[124,null,null,null,11,0,"N/A",null,null,11,0,null,null,0]
[125,null,null,null,11,0,"N/A",null,null,11,0,null,null,0]
[126,null,null,null,11,0,"N/A",null,null,11,0,null,null,0]
[127,null,null,null,11,0,"N/A",null,null,11,0,null,null,0]
[128,null,null,null,11,0,"N/A",null,null,11,0,null,null,0]
[129,null,null,null,11,0,"N/A",null,null,11,0,null,null,0]
[130,null,null,null,11,{"$f":"D137*E137","v":0},"N/A",null,null,11,{"$f":"I137*J137","v":0},null,null,{"$f":"L137*M137","v":0}]
[131,null,null,null,11,0,"N/A",null,null,11,0,null,null,0]
[132,null,null,null,11,0,"N/A",null,null,11,0,null,null,0]
[133,null,null,null,11,0,"N/A",null,null,11,0,null,null,0]
[134,null,null,null,11,0,"N/A",null,null,11,0,null,null,0]
[135,null,null,null,11,0,"N/A",null,null,11,0,null,null,0]
[136,null,null,null,11,0,"N/A",null,null,11,{"$f":"I143*J143","v":0},null,null,{"$f":"L143*M143","v":0}]
[137,null,null,null,11,0,"N/A",null,null,11,0,null,null,0]
[138,null,null,null,11,0,"N/A",null,null,11,0,null,null,0]
[139,null,null,null,11,0,"N/A",null,null,11,0,null,null,0]
[140,null,null,null,11,0,"N/A",null,null,11,0,null,null,0]
[141,null,null,null,11,0,"N/A",null,null,11,0,null,null,0]
[142,null,null,null,11,0,"N/A",null,null,11,0,null,null,0]
[143,null,null,null,11,0,"N/A",null,null,11,0,null,null,0]
[144,null,null,null,11,0,"N/A",null,null,11,0,null,null,0]
[145,null,null,null,11,0,"N/A",null,null,11,0,null,null,0]
[146,null,null,null,11,0,"N/A",null,null,11,0,null,null,0]
[147,null,null,null,11,0,"N/A",null,null,11,0,null,null,0]
[148,null,null,null,11,0,"N/A",null,null,11,0,null,null,0]
[149,null,null,null,11,0,"N/A",null,null,11,0,null,null,0]
[150,null,null,null,11,0,"N/A",null,null,11,0,null,null,0]
[151,null,null,null,11,0,"N/A",null,null,11,0,null,null,0]
[152,null,null,null,11,0,"N/A",null,null,11,0,null,null,0]
[153,null,null,null,11,0,"N/A",null,null,11,0,null,null,0]
[154,null,null,null,11,0,"N/A",null,null,11,0,null,null,0]
[155,null,null,null,11,0,"N/A",null,null,11,0,null,null,0]
[156,null,null,null,11,0,"N/A",null,null,11,0,null,null,0]
[157,null,null,null,11,0,"N/A",null,null,11,0,null,null,0]
[158,null,null,null,11,0,"N/A",null,null,11,0,null,null,0]
[159,null,null,null,11,0,"N/A",null,null,11,0,null,null,0]
[160,null,null,null,11,0,"N/A",null,null,11,0,null,null,0]
[161,null,null,null,11,0,"N/A",null,null,11,0,null,null,0]
[162,null,null,null,11,0,"N/A",null,null,11,0,null,null,0]
[163,null,null,null,11,0,"N/A",null,null,11,0,null,null,0]
[164,null,null,null,11,0,"N/A",null,null,11,0,null,null,0]
[165,null,null,null,11,0,"N/A",null,null,11,0,null,null,0]
[166,null,null,null,11,0,"N/A",null,null,11,0,null,null,0]
[167,null,null,null,11,0,"N/A",null,null,11,0,null,null,0]
[168,null,null,null,11,0,"N/A",null,null,11,0,null,null,0]
[169,null,null,null,11,0,"N/A",null,null,11,0,null,null,0]
[170,null,null,null,11,0,"N/A",null,null,11,0,null,null,0]
[171,null,null,null,11,0,"N/A",null,null,11,0,null,null,0]
[172,null,null,null,11,0,"N/A",null,null,11,0,null,null,0]
[173,null,null,null,11,0,"N/A",null,null,11,0,null,null,0]
[174,null,null,null,11,0,"N/A",null,null,11,0,null,null,0]
[175,null,null,null,11,0,"N/A",null,null,11,0,null,null,0]
[176,null,null,null,11,0,"N/A",null,null,11,0,null,null,0]
[177,null,null,null,11,0,"N/A",null,null,11,0,null,null,0]
[178,null,null,null,11,0,"N/A",null,null,11,0,null,null,0]
[178,null,null,null,11,0,"N/A",null,null,11,0,null,null,0]
[180,null,null,null,11,0,"N/A",null,null,11,0,null,null,0]
[181,null,null,null,11,0,"N/A",null,null,11,0,null,null,0]
[182,null,null,null,11,0,"N/A",null,null,11,0,null,null,0]
[183,null,null,null,11,0,"N/A",null,null,11,0,null,null,0]
[184,null,null,null,11,0,"N/A",null,null,11,0,null,null,0]
[185,null,null,null,11,0,"N/A",null,null,11,0,null,null,0]
[186,null,null,null,11,0,"N/A",null,null,11,0,null,null,0]
[187,null,null,null,11,0,"N/A",null,null,11,0,null,null,0]
[188,null,null,null,11,0,"N/A",null,null,11,0,null,null,0]
[189,null,null,null,11,0,"N/A",null,null,11,0,null,null,0]
[190,null,null,null,11,0,"N/A",null,null,11,0,null,null,0]
[191,null,null,null,11,0,"N/A",null,null,11,0,null,null,0]
[192,null,null,null,11,0,"N/A",null,null,11,0,null,null,0]
[193,null,null,null,11,0,"N/A",null,null,11,0,null,null,0]
[194,null,null,null,11,{"$f":"D201*E201","v":0},"N/A",null,null,11,0,null,null,0]
[195,null,null,null,11,0,"N/A",null,null,11,0,null,null,0]
[196,null,null,null,11,0,"N/A",null,null,11,0,null,null,0]
[197,null,null,null,11,0,"N/A",null,null,11,0,null,null,0]
[198,null,null,null,11,0,"N/A",null,null,11,0,null,null,0]
[199,null,null,null,11,0,"N/A",null,null,11,0,null,null,0]
[200,null,null,null,11,0,"N/A",null,null,11,{"$f":"I207*J207","v":0},null,null,{"$f":"L207*M207","v":0}]
[201,null,null,null,11,0,"N/A",null,null,11,0,null,null,0]
[202,null,null,null,11,0,"N/A",null,null,11,0,null,null,0]
[203,null,null,null,11,0,"N/A",null,null,11,0,null,null,0]
[204,null,null,null,11,0,"N/A",null,null,11,0,null,null,0]
[205,null,null,null,11,0,"N/A",null,null,11,0,null,null,0]
[206,null,null,null,11,0,"N/A",null,null,11,0,null,null,0]
[207,null,null,null,11,0,"N/A",null,null,11,0,null,null,0]
[208,null,null,null,11,0,"N/A",null,null,11,0,null,null,0]
[209,null,null,null,11,0,"N/A",null,null,11,0,null,null,0]
[210,null,null,null,11,0,"N/A",null,null,11,0,null,null,0]
[211,null,null,null,11,0,"N/A",null,null,11,0,null,null,0]
[212,null,null,null,11,0,"N/A",null,null,11,0,null,null,0]
[213,null,null,null,11,0,"N/A",null,null,11,0,null,null,0]
[214,null,null,null,11,0,"N/A",null,null,11,0,null,null,0]
[215,null,null,null,11,0,"N/A",null,null,11,0,null,null,0]
[216,null,null,null,11,0,"N/A",null,null,11,0,null,null,0]
[217,null,null,null,11,0,"N/A",null,null,11,0,null,null,0]
[218,null,null,null,11,0,"N/A",null,null,11,0,null,null,0]
[219,null,null,null,11,0,"N/A",null,null,11,0,null,null,0]
[220,null,null,null,11,0,"N/A",null,null,11,0,null,null,0]
[221,null,null,null,11,0,"N/A",null,null,11,0,null,null,0]
[222,null,null,null,11,0,"N/A",null,null,11,0,null,null,0]
[223,null,null,null,11,0,"N/A",null,null,11,0,null,null,0]
[224,null,null,null,11,0,"N/A",null,null,11,0,null,null,0]
[225,null,null,null,11,0,"N/A",null,null,11,0,null,null,0]
[226,null,null,null,11,0,"N/A",null,null,11,0,null,null,0]
[227,null,null,null,11,0,"N/A",null,null,11,0,null,null,0]
[228,null,null,null,11,0,"N/A",null,null,11,0,null,null,0]
[229,null,null,null,11,0,"N/A",null,null,11,0,null,null,0]
[230,null,null,null,11,0,"N/A",null,null,11,0,null,null,0]
[231,null,null,null,11,0,"N/A",null,null,11,0,null,null,0]
[232,null,null,null,11,0,"N/A",null,null,11,0,null,null,0]
[233,null,null,null,11,0,"N/A",null,null,11,0,null,null,0]
[234,null,null,null,11,0,"N/A",null,null,11,0,null,null,0]
[235,null,null,null,11,0,"N/A",null,null,11,0,null,null,0]
[236,null,null,null,11,0,"N/A",null,null,11,0,null,null,0]
[237,null,null,null,11,0,"N/A",null,null,11,0,null,null,0]
[238,null,null,null,11,0,"N/A",null,null,11,0,null,null,0]
[239,null,null,null,11,0,"N/A",null,null,11,0,null,null,0]
[240,null,null,null,11,0,"N/A",null,null,11,0,null,null,0]
[241,null,null,null,11,0,"N/A",null,null,11,0,null,null,0]
[242,null,null,null,11,0,"N/A",null,null,11,0,null,null,0]
[243,null,null,null,11,0,"N/A",null,null,11,0,null,null,0]
[244,null,null,null,11,0,"N/A",null,null,11,0,null,null,0]
[245,null,null,null,11,0,"N/A",null,null,11,0,null,null,0]
[246,null,null,null,11,0,"N/A",null,null,11,0,null,null,0]
[247,null,null,null,11,0,"N/A",null,null,11,0,null,null,0]
[248,null,null,null,11,0,"N/A",null,null,11,0,null,null,0]
[249,null,null,null,11,0,"N/A",null,null,11,0,null,null,0]
[250,null,null,null,11,0,"N/A",null,null,11,0,null,null,0]
[251,null,null,null,11,0,"N/A",null,null,11,0,null,null,0]
[252,null,null,null,11,0,"N/A",null,null,11,0,null,null,0]
[253,null,null,null,11,0,"N/A",null,null,11,0,null,null,0]
[254,null,null,null,11,0,"N/A",null,null,11,0,null,null,0]
[255,null,null,null,11,0,"N/A",null,null,11,0,null,null,0]
[256,null,null,null,11,0,"N/A",null,null,11,0,null,null,0]
[257,null,null,null,11,0,"N/A",null,null,11,0,null,null,0]
[258,null,null,null,11,{"$f":"D265*E265","v":0},"N/A",null,null,11,0,null,null,0]
[259,null,null,null,11,0,"N/A",null,null,11,0,null,null,0]
[260,null,null,null,11,0,"N/A",null,null,11,0,null,null,0]
[261,null,null,null,11,0,"N/A",null,null,11,0,null,null,0]
[262,null,null,null,11,0,"N/A",null,null,11,0,null,null,0]
[263,null,null,null,11,0,"N/A",null,null,11,0,null,null,0]
[264,null,null,null,11,0,"N/A",null,null,11,{"$f":"I271*J271","v":0},null,null,{"$f":"L271*M271","v":0}]
[265,null,null,null,11,0,"N/A",null,null,11,0,null,null,0]
[266,null,null,null,11,0,"N/A",null,null,11,0,null,null,0]
[267,null,null,null,11,0,"N/A",null,null,11,0,null,null,0]
[268,null,null,null,11,0,"N/A",null,null,11,0,null,null,0]
[269,null,null,null,11,0,"N/A",null,null,11,0,null,null,0]
[270,null,null,null,11,0,"N/A",null,null,11,{"$f":"I277*J277","v":0},null,null,{"$f":"L277*M277","v":0}]
[271,null,null,null,11,0,"N/A",null,null,11,0,null,null,0]
[272,null,null,null,11,0,"N/A",null,null,11,0,null,null,0]
[273,null,null,null,11,0,"N/A",null,null,11,0,null,null,0]
[274,null,null,null,11,0,"N/A",null,null,11,0,null,null,0]
[275,null,null,null,11,0,"N/A",null,null,11,0,null,null,0]
[276,null,null,null,11,0,"N/A",null,null,11,0,null,null,0]
[277,null,null,null,11,0,"N/A",null,null,11,0,null,null,0]
[278,null,null,null,11,0,"N/A",null,null,11,0,null,null,0]
[279,null,null,null,11,0,"N/A",null,null,11,0,null,null,0]
[280,null,null,null,11,0,"N/A",null,null,11,0,null,null,0]
[281,null,null,null,11,0,"N/A",null,null,11,0,null,null,0]
[282,null,null,null,11,0,"N/A",null,null,11,0,null,null,0]
[283,null,null,null,11,0,"N/A",null,null,11,0,null,null,0]
[284,null,null,null,11,0,"N/A",null,null,11,0,null,null,0]
[285,null,null,null,11,0,"N/A",null,null,11,0,null,null,0]
[286,null,null,null,11,0,"N/A",null,null,11,0,null,null,0]
[287,null,null,null,11,0,"N/A",null,null,11,0,null,null,0]
[288,null,null,null,11,0,"N/A",null,null,11,0,null,null,0]
[289,null,null,null,11,0,"N/A",null,null,11,0,null,null,0]
[290,null,null,null,11,0,"N/A",null,null,11,0,null,null,0]
[291,null,null,null,11,0,"N/A",null,null,11,0,null,null,0]
[292,null,null,null,11,0,"N/A",null,null,11,0,null,null,0]
[293,null,null,null,11,0,"N/A",null,null,11,0,null,null,0]
[294,null,null,null,11,0,"N/A",null,null,11,0,null,null,0]
[295,null,null,null,11,0,"N/A",null,null,11,0,null,null,0]
[296,null,null,null,11,0,"N/A",null,null,11,0,null,null,0]
[297,null,null,null,11,0,"N/A",null,null,11,0,null,null,0]
[298,null,null,null,11,0,"N/A",null,null,11,0,null,null,0]
[299,null,null,null,11,0,"N/A",null,null,11,0,null,null,0]
[300,null,null,null,11,0,"N/A",null,null,11,0,null,null,0]
[301,null,null,null,11,0,"N/A",null,null,11,0,null,null,0]
[302,null,null,null,11,0,"N/A",null,null,11,0,null,null,0]
[303,null,null,null,11,0,"N/A",null,null,11,0,null,null,0]
[304,null,null,null,11,0,"N/A",null,null,11,0,null,null,0]
[305,null,null,null,11,0,"N/A",null,null,11,0,null,null,0]
[306,null,null,null,11,0,"N/A",null,null,11,0,null,null,0]
[307,null,null,null,11,0,"N/A",null,null,11,0,null,null,0]
[308,null,null,null,11,0,"N/A",null,null,11,0,null,null,0]
[309,null,null,null,11,0,"N/A",null,null,11,0,null,null,0]
[310,null,null,null,11,0,"N/A",null,null,11,0,null,null,0]
[311,null,null,null,11,0,"N/A",null,null,11,0,null,null,0]
[312,null,null,null,11,0,"N/A",null,null,11,0,null,null,0]
[313,null,null,null,11,0,"N/A",null,null,11,0,null,null,0]
[314,null,null,null,11,0,"N/A",null,null,11,0,null,null,0]
[315,null,null,null,11,0,"N/A",null,null,11,0,null,null,0]
[316,null,null,null,11,0,"N/A",null,null,11,0,null,null,0]
[317,null,null,null,11,0,"N/A",null,null,11,0,null,null,0]
[318,null,null,null,11,0,"N/A",null,null,11,0,null,null,0]
[319,null,null,null,11,0,"N/A",null,null,11,0,null,null,0]
[320,null,null,null,11,0,"N/A",null,null,11,0,null,null,0]
[321,null,null,null,11,0,"N/A",null,null,11,0,null,null,0]
[322,null,null,null,11,{"$f":"D329*E329","v":0},"N/A",null,null,11,0,null,null,0]
[323,null,null,null,11,0,"N/A",null,null,11,0,null,null,0]
[324,null,null,null,11,0,"N/A",null,null,11,0,null,null,0]
[325,null,null,null,11,0,"N/A",null,null,11,0,null,null,0]
[326,null,null,null,11,0,"N/A",null,null,11,0,null,null,0]
[327,null,null,null,11,0,"N/A",null,null,11,0,null,null,0]
[328,null,null,null,11,0,"N/A",null,null,11,0,null,null,0]
[329,null,null,null,11,0,"N/A",null,null,11,0,null,null,0]
[330,null,null,null,11,0,"N/A",null,null,11,0,null,null,0]
[331,null,null,null,11,0,"N/A",null,null,11,0,null,null,0]
[332,null,null,null,11,0,"N/A",null,null,11,0,null,null,0]
[333,null,null,null,11,0,"N/A",null,null,11,0,null,null,0]
[334,null,null,null,11,0,"N/A",null,null,11,{"$f":"I341*J341","v":0},null,null,{"$f":"L341*M341","v":0}]
[335,null,null,null,11,0,"N/A",null,null,11,0,null,null,0]
[336,null,null,null,11,0,"N/A",null,null,11,0,null,null,0]
[337,null,null,null,11,0,"N/A",null,null,11,0,null,null,0]
[338,null,null,null,11,0,"N/A",null,null,11,0,null,null,0]
[339,null,null,null,11,0,"N/A",null,null,11,0,null,null,0]
[340,null,null,null,11,0,"N/A",null,null,11,0,null,null,0]
[341,null,null,null,11,0,"N/A",null,null,11,0,null,null,0]
[342,null,null,null,11,0,"N/A",null,null,11,0,null,null,0]
[343,null,null,null,11,0,"N/A",null,null,11,0,null,null,0]
[344,null,null,null,11,0,"N/A",null,null,11,0,null,null,0]
[345,null,null,null,11,0,"N/A",null,null,11,0,null,null,0]
[346,null,null,null,11,0,"N/A",null,null,11,0,null,null,0]
[347,null,null,null,11,0,"N/A",null,null,11,0,null,null,0]
[348,null,null,null,11,0,"N/A",null,null,11,0,null,null,0]
[349,null,null,null,11,0,"N/A",null,null,11,0,null,null,0]
[350,null,null,null,11,0,"N/A",null,null,11,0,null,null,0]
[351,null,null,null,11,0,"N/A",null,null,11,0,null,null,0]
[352,null,null,null,11,0,"N/A",null,null,11,0,null,null,0]
[353,null,null,null,11,0,"N/A",null,null,11,0,null,null,0]
[354,null,null,null,11,0,"N/A",null,null,11,0,null,null,0]
[355,null,null,null,11,0,"N/A",null,null,11,0,null,null,0]
[356,null,null,null,11,0,"N/A",null,null,11,0,null,null,0]
[357,null,null,null,11,0,"N/A",null,null,11,0,null,null,0]
[358,null,null,null,11,0,"N/A",null,null,11,0,null,null,0]
[359,null,null,null,11,0,"N/A",null,null,11,0,null,null,0]
[360,null,null,null,11,0,"N/A",null,null,11,0,null,null,0]
[361,null,null,null,11,0,"N/A",null,null,11,0,null,null,0]
[362,null,null,null,11,0,"N/A",null,null,11,0,null,null,0]
[363,null,null,null,11,0,"N/A",null,null,11,0,null,null,0]
[364,null,null,null,11,0,"N/A",null,null,11,0,null,null,0]
[365,null,null,null,11,0,"N/A",null,null,11,0,null,null,0]
[366,null,null,null,11,0,"N/A",null,null,11,0,null,null,0]
[367,null,null,null,11,0,"N/A",null,null,11,0,null,null,0]
[368,null,null,null,11,0,"N/A",null,null,11,0,null,null,0]
[369,null,null,null,11,0,"N/A",null,null,11,0,null,null,0]
[370,null,null,null,11,0,"N/A",null,null,11,0,null,null,0]
[371,null,null,null,11,0,"N/A",null,null,11,0,null,null,0]
[372,null,null,null,11,0,"N/A",null,null,11,0,null,null,0]
[373,null,null,null,11,0,"N/A",null,null,11,0,null,null,0]
[374,null,null,null,11,0,"N/A",null,null,11,0,null,null,0]
[375,null,null,null,11,0,"N/A",null,null,11,0,null,null,0]
[376,null,null,null,11,0,"N/A",null,null,11,0,null,null,0]
[377,null,null,null,11,0,"N/A",null,null,11,0,null,null,0]
[378,null,null,null,11,0,"N/A",null,null,11,0,null,null,0]
[378,null,null,null,11,0,"N/A",null,null,11,0,null,null,0]
[380,null,null,null,11,0,"N/A",null,null,11,0,null,null,0]
[381,null,null,null,11,0,"N/A",null,null,11,0,null,null,0]
[382,null,null,null,11,0,"N/A",null,null,11,0,null,null,0]
[383,null,null,null,11,0,"N/A",null,null,11,0,null,null,0]
[384,null,null,null,11,0,"N/A",null,null,11,0,null,null,0]
[385,null,null,null,11,0,"N/A",null,null,11,0,null,null,0]
[386,null,null,null,11,{"$f":"D393*E393","v":0},"N/A",null,null,11,0,null,null,0]
[387,null,null,null,11,0,"N/A",null,null,11,0,null,null,0]
[388,null,null,null,11,0,"N/A",null,null,11,0,null,null,0]
[389,null,null,null,11,0,"N/A",null,null,11,0,null,null,0]
[390,null,null,null,11,0,"N/A",null,null,11,0,null,null,0]
[391,null,null,null,11,0,"N/A",null,null,11,0,null,null,0]
[392,null,null,null,11,0,"N/A",null,null,11,0,null,null,0]
[393,null,null,null,11,0,"N/A",null,null,11,0,null,null,0]
[394,null,null,null,11,0,"N/A",null,null,11,0,null,null,0]
[395,null,null,null,11,0,"N/A",null,null,11,0,null,null,0]
[396,null,null,null,11,0,"N/A",null,null,11,0,null,null,0]
[397,null,null,null,11,0,"N/A",null,null,11,0,null,null,0]
[398,null,null,null,11,0,"N/A",null,null,11,{"$f":"I405*J405","v":0},null,null,{"$f":"L405*M405","v":0}]
[399,null,null,null,11,0,"N/A",null,null,11,0,null,null,0]
[400,null,null,null,11,0,"N/A",null,null,11,0,null,null,0]
[401,null,null,null,11,0,"N/A",null,null,11,0,null,null,0]
[402,null,null,null,11,0,"N/A",null,null,11,0,null,null,0]
[403,null,null,null,11,0,"N/A",null,null,11,0,null,null,0]
[404,null,null,null,11,0,"N/A",null,null,11,{"$f":"I411*J411","v":0},null,null,{"$f":"L411*M411","v":0}]
[405,null,null,null,11,0,"N/A",null,null,11,0,null,null,0]
[406,null,null,null,11,0,"N/A",null,null,11,0,null,null,0]
[407,null,null,null,11,0,"N/A",null,null,11,0,null,null,0]
[408,null,null,null,11,0,"N/A",null,null,11,0,null,null,0]
[409,null,null,null,11,0,"N/A",null,null,11,0,null,null,0]
[410,null,null,null,11,0,"N/A",null,null,11,0,null,null,0]
[411,null,null,null,11,0,"N/A",null,null,11,0,null,null,0]
[412,null,null,null,11,0,"N/A",null,null,11,0,null,null,0]
[413,null,null,null,11,0,"N/A",null,null,11,0,null,null,0]
[414,null,null,null,11,0,"N/A",null,null,11,0,null,null,0]
[415,null,null,null,11,0,"N/A",null,null,11,0,null,null,0]
[416,null,null,null,11,0,"N/A",null,null,11,0,null,null,0]
[417,null,null,null,11,0,"N/A",null,null,11,0,null,null,0]
[418,null,null,null,11,0,"N/A",null,null,11,0,null,null,0]
[419,null,null,null,11,0,"N/A",null,null,11,0,null,null,0]
[420,null,null,null,11,0,"N/A",null,null,11,0,null,null,0]
[421,null,null,null,11,0,"N/A",null,null,11,0,null,null,0]
[422,null,null,null,11,0,"N/A",null,null,11,0,null,null,0]
[423,null,null,null,11,0,"N/A",null,null,11,0,null,null,0]
[424,null,null,null,11,0,"N/A",null,null,11,0,null,null,0]
[425,null,null,null,11,0,"N/A",null,null,11,0,null,null,0]
[426,null,null,null,11,0,"N/A",null,null,11,0,null,null,0]
[427,null,null,null,11,0,"N/A",null,null,11,0,null,null,0]
[428,null,null,null,11,0,"N/A",null,null,11,0,null,null,0]
[429,null,null,null,11,0,"N/A",null,null,11,0,null,null,0]
[430,null,null,null,11,0,"N/A",null,null,11,0,null,null,0]
[431,null,null,null,11,0,"N/A",null,null,11,0,null,null,0]
[432,null,null,null,11,0,"N/A",null,null,11,0,null,null,0]
[433,null,null,null,11,0,"N/A",null,null,11,0,null,null,0]
[434,null,null,null,11,0,"N/A",null,null,11,0,null,null,0]
[435,null,null,null,11,0,"N/A",null,null,11,0,null,null,0]
[436,null,null,null,11,0,"N/A",null,null,11,0,null,null,0]
[437,null,null,null,11,0,"N/A",null,null,11,0,null,null,0]
[438,null,null,null,11,0,"N/A",null,null,11,0,null,null,0]
[439,null,null,null,11,0,"N/A",null,null,11,0,null,null,0]
[440,null,null,null,11,0,"N/A",null,null,11,0,null,null,0]
[441,null,null,null,11,0,"N/A",null,null,11,0,null,null,0]
[442,null,null,null,11,0,"N/A",null,null,11,0,null,null,0]
[443,null,null,null,11,0,"N/A",null,null,11,0,null,null,0]
[444,null,null,null,11,0,"N/A",null,null,11,0,null,null,0]
[445,null,null,null,11,0,"N/A",null,null,11,0,null,null,0]
[446,null,null,null,11,0,"N/A",null,null,11,0,null,null,0]
[447,null,null,null,11,0,"N/A",null,null,11,0,null,null,0]
[448,null,null,null,11,0,"N/A",null,null,11,0,null,null,0]
[449,null,null,null,11,0,"N/A",null,null,11,0,null,null,0]
[450,null,null,null,11,{"$f":"D457*E457","v":0},"N/A",null,null,11,0,null,null,0]
[451,null,null,null,11,0,"N/A",null,null,11,0,null,null,0]
[452,null,null,null,11,0,"N/A",null,null,11,0,null,null,0]
[453,null,null,null,11,0,"N/A",null,null,11,0,null,null,0]
[454,null,null,null,11,0,"N/A",null,null,11,0,null,null,0]
[455,null,null,null,11,0,"N/A",null,null,11,0,null,null,0]
[456,null,null,null,11,0,"N/A",null,null,11,0,null,null,0]
[457,null,null,null,11,0,"N/A",null,null,11,0,null,null,0]
[458,null,null,null,11,0,"N/A",null,null,11,0,null,null,0]
[459,null,null,null,11,0,"N/A",null,null,11,0,null,null,0]
[460,null,null,null,11,0,"N/A",null,null,11,0,null,null,0]
[461,null,null,null,11,0,"N/A",null,null,11,0,null,null,0]
[462,null,null,null,11,0,"N/A",null,null,11,0,null,null,0]
[463,null,null,null,11,0,"N/A",null,null,11,0,null,null,0]
[464,null,null,null,11,0,"N/A",null,null,11,0,null,null,0]
[465,null,null,null,11,0,"N/A",null,null,11,0,null,null,0]
[466,null,null,null,11,0,"N/A",null,null,11,0,null,null,0]
[467,null,null,null,11,0,"N/A",null,null,11,0,null,null,0]
[468,null,null,null,11,0,"N/A",null,null,11,{"$f":"I475*J475","v":0},null,null,{"$f":"L475*M475","v":0}]
[469,null,null,null,11,0,"N/A",null,null,11,0,null,null,0]
[470,null,null,null,11,0,"N/A",null,null,11,0,null,null,0]
[471,null,null,null,11,0,"N/A",null,null,11,0,null,null,0]
[472,null,null,null,11,0,"N/A",null,null,11,0,null,null,0]
[473,null,null,null,11,0,"N/A",null,null,11,0,null,null,0]
[474,null,null,null,11,0,"N/A",null,null,11,0,null,null,0]
[475,null,null,null,11,0,"N/A",null,null,11,0,null,null,0]
[476,null,null,null,11,0,"N/A",null,null,11,0,null,null,0]
[477,null,null,null,11,0,"N/A",null,null,11,0,null,null,0]
[478,null,null,null,11,0,"N/A",null,null,11,0,null,null,0]
[479,null,null,null,11,0,"N/A",null,null,11,0,null,null,0]
[480,null,null,null,11,0,"N/A",null,null,11,0,null,null,0]
[481,null,null,null,11,0,"N/A",null,null,11,0,null,null,0]
[482,null,null,null,11,0,"N/A",null,null,11,0,null,null,0]
[483,null,null,null,11,0,"N/A",null,null,11,0,null,null,0]
[484,null,null,null,11,0,"N/A",null,null,11,0,null,null,0]
[485,null,null,null,11,0,"N/A",null,null,11,0,null,null,0]
[486,null,null,null,11,0,"N/A",null,null,11,0,null,null,0]
[487,null,null,null,11,0,"N/A",null,null,11,0,null,null,0]
[488,null,null,null,11,0,"N/A",null,null,11,0,null,null,0]
[489,null,null,null,11,0,"N/A",null,null,11,0,null,null,0]
[490,null,null,null,11,0,"N/A",null,null,11,0,null,null,0]
[491,null,null,null,11,0,"N/A",null,null,11,0,null,null,0]
[492,null,null,null,11,0,"N/A",null,null,11,0,null,null,0]
[493,null,null,null,11,0,"N/A",null,null,11,0,null,null,0]
[494,null,null,null,11,0,"N/A",null,null,11,0,null,null,0]
[495,null,null,null,11,0,"N/A",null,null,11,0,null,null,0]
[null,"TOTALS",null,null,null,{"$f":"SUM(F8:F502)","v":0},{"$f":"SUM(G8:G502)","v":0},{"$f":"SUM(H8:H502)","v":0},null,null,{"$f":"SUM(K8:K502)","v":0},null,null,{"$f":"SUM(N8:N502)","v":0}]
[null,null,null,null,null,"(Line 1)","(Line 3a)","(Line 1a)",null,null,"(Line 4a)",null,null,"(Line 5a)"]
[]
[null,"RETURN ATTACHMENT \"A\" WITH THE COUNTY'S REIMBURSEMENT REQUEST"]

{"sheet":"B-Instructions","index":5,"n_rows":28,"n_cols":6,"rows_kept":28,"cut":false,"hidden":false,"merged":[[23,0,23,9],[24,0,24,9],[25,0,25,9],[10,0,10,10],[7,0,7,9],[1,0,1,9],[3,0,3,9],[5,0,5,9],[15,0,15,6],[13,0,13,9],[27,0,27,6],[0,0,0,9],[2,0,2,9],[4,1,4,2],[4,3,4,9],[6,0,6,9],[8,0,8,9],[9,0,9,9],[11,0,11,9],[12,0,12,9],[14,0,14,9],[22,0,22,9],[16,1,16,5],[17,1,17,5],[21,1,21,3],[26,0,26,9]]}
["OFF-SITE EARLY VOTING POLL WORKERS PAY"]
[]
["ATTACHMENT “B” for Preferential Primary Runoff Elections "]
[]
["COUNTY: ",{"$f":"REQUEST!C4","v":0}]
[]
["Attachment “B” contains a table for listing the names of the poll workers who worked at an off-site early voting polling site outside of the county clerk's office and under the direction and supervision of the county election commission during early voting. The table is used to record payment for working at an off-site early voting polling site during early voting, to record, where applicable, payment for attending poll worker training conducted before the election by the county's State Board-certified trainer, and for mileage expenses related to the delivery and return of election materials to and from the off-site early voting polling site. "]
["INSTRUCTIONS:"]
["Section 1: List the names of the poll workers who worked at an off-site early voting polling site outside of the county clerk's office and under the direction and supervision of the county election commission during early voting.  "]
[]
["Section 2: The payments for attending poll worker training is ONLY applicable to preferential primary elections."]
[]
["Section 3: Record the regular hours worked by the off-site early voting poll workers during the early voting period. A.C.A. 7-4-112 requires that they be paid a minimum of the prevailing minimum wage. Wages will automatically calculate at the current state minimum wage of $11.00 hourly."]
[]
["Section 4: Overtime hours that are required by law for off-site early voting poll workers during the early voting period are ONLY applicable to preferential primary elections."]
[]
[null,2020]
[null,"MAXIMUM HOURS PER EACH OFF-SITE EARLY VOTING WORKER"]
[null,"DAYS","DATES","TIMES","Regular","Overtime"]
[null,"Tuesday - Friday","June 14th - June 17th","  8:00 a.m. - 5:00 p.m. ",36,"N/A"]
[null,"Monday","June 20th","  8:00 a.m. - 5:00 p.m. ",9]
[null,"TOTAL",null,null,{"$f":"SUM(E20:E21)","v":45},{"$f":"SUM(F20:F21)","v":0}]
[]
["Section 5: Record the number of miles traveled by the off-site early voting poll workers delivering and/or returning materials to and from their off-site early voting poll(s) during early voting. Record the rate at which the poll workers were paid by the county up to a maximum of $.52 per mile. A.C.A. 7-4-112 requires that they receive no more than the maximum rate prescribed by law for state employees by state travel regulations. Mileage expense will automatically calculate."]
[]
["Each “TOTAL” will automatically calculate. Each \"TOTAL\" on Attachment \"B\" will then automatically post on the appropriate lines on the “SUMMARY OF COSTS” worksheet. The totals on the \"SUMMARY OF COSTS\" worksheet will, in turn, automatically post on the appropriate lines on the \"COUNTY REIMBURSEMENT REQUEST\" worksheet."]
[]
["RETURN ATTACHMENT \"B\" WITH THE COUNTY'S REIMBURSEMENT REQUEST"]

{"sheet":"B-Form","index":6,"n_rows":107,"n_cols":13,"rows_kept":107,"cut":false,"hidden":false,"merged":[[100,1,100,2],[84,1,84,2],[85,1,85,2],[86,1,86,2],[87,1,87,2],[88,1,88,2],[89,1,89,2],[92,1,92,2],[93,1,93,2],[94,1,94,2],[97,1,97,2],[98,1,98,2],[99,1,99,2],[75,1,75,2],[77,1,77,2],[78,1,78,2],[79,1,79,2],[95,1,95,2],[96,1,96,2],[80,1,80,2],[81,1,81,2],[82,1,82,2],[83,1,83,2],[91,1,91,2],[90,1,90,2],[76,1,76,2],[74,1,74,2],[22,1,22,2],[34,1,34,2],[35,1,35,2],[36,1,36,2],[37,1,37,2],[50,1,50,2],[51,1,51,2],[38,1,38,2],[39,1,39,2],[40,1,40,2],[41,1,41,2],[42,1,42,2],[43,1,43,2],[44,1,44,2],[45,1,45,2],[46,1,46,2],[62,1,62,2],[63,1,63,2],[64,1,64,2],[65,1,65,2],[66,1,66,2],[67,1,67,2],[52,1,52,2],[0,1,0,12],[3,1,3,12],[2,4,2,12],[1,1,1,12],[5,7,5,9],[17,1,17,2],[11,1,11,2],[68,1,68,2],[69,1,69,2],[61,1,61,2],[53,1,53,2],[54,1,54,2],[55,1,55,2],[56,1,56,2],[57,1,57,2],[58,1,58,2],[59,1,59,2],[60,1,60,2],[103,10,104,11],[101,1,101,2],[102,1,102,2],[5,1,5,2],[19,1,19,2],[2,2,2,3],[8,1,8,2],[103,1,104,2],[23,1,23,2],[24,1,24,2],[25,1,25,2],[26,1,26,2],[27,1,27,2],[28,1,28,2],[29,1,29,2],[32,1,32,2],[33,1,33,2],[47,1,47,2],[48,1,48,2],[49,1,49,2],[70,1,70,2],[71,1,71,2],[72,1,72,2],[73,1,73,2],[105,0,105,12],[106,0,107,12],[14,1,14,2],[15,1,15,2],[16,1,16,2],[6,4,6,6],[18,1,18,2],[4,7,4,9],[6,7,6,9],[4,10,4,12],[12,1,12,2],[4,1,4,2],[6,1,6,2],[7,1,7,2],[4,4,4,6],[9,1,9,2],[10,1,10,2],[13,1,13,2],[30,1,30,2],[31,1,31,2],[20,1,20,2],[21,1,21,2],[103,4,104,5],[103,7,104,8]]}
[null,"OFF-SITE EARLY VOTING POLL WORKERS PAY"]
[null,"ATTACHMENT “B” for Preferential Primary Elections "]
[null,"COUNTY: ",{"$f":"REQUEST!C4","v":0}]
[]
[null,"Section 1",null,"Section 2","Section 3",null,null,"Section 4",null,null,"Section 5"]
[null,"NAMES OF",null,null,null,null,null,"OVERTIME "]
[null,"OFF-SITE EARLY VOTING",null,"TRAINING","REGULAR ",null,null,"(when required by law)",null,null,"MATERIAL DELIVERY MILEAGE"]
[null,"POLL WORKERS",null,25,"HOURS","RATE","WAGES","HOURS","RATE","WAGES","MILES","RATE","EXPENSE"]
[1,null,null,"N/A",null,11,{"$f":"E9*F9","v":0},null,16.5,{"$f":"H9*I9","v":0},null,null,{"$f":"K9*L9","v":0}]
[2,null,null,"N/A",null,11,{"$f":"E10*F10","v":0},null,16.5,0,null,null,{"$f":"K10*L10","v":0}]
[3,null,null,"N/A",null,11,0,null,16.5,0,null,null,0]
[4,null,null,"N/A",null,11,0,null,16.5,0,null,null,0]
[5,null,null,"N/A",null,11,0,null,16.5,0,null,null,0]
[6,null,null,"N/A",null,11,0,null,16.5,0,null,null,0]
[7,null,null,"N/A",null,11,{"$f":"E15*F15","v":0},null,16.5,0,null,null,{"$f":"K15*L15","v":0}]
[8,null,null,"N/A",null,11,{"$f":"E16*F16","v":0},null,16.5,0,null,null,{"$f":"K16*L16","v":0}]
[9,null,null,"N/A",null,11,{"$f":"E17*F17","v":0},null,16.5,0,null,null,{"$f":"K17*L17","v":0}]
[10,null,null,"N/A",null,11,0,null,16.5,{"$f":"H18*I18","v":0},null,null,0]
[11,null,null,"N/A",null,11,0,null,16.5,0,null,null,0]
[12,null,null,"N/A",null,11,0,null,16.5,0,null,null,0]
[13,null,null,"N/A",null,11,0,null,16.5,0,null,null,0]
[14,null,null,"N/A",null,11,0,null,16.5,0,null,null,0]
[15,null,null,"N/A",null,11,0,null,16.5,0,null,null,0]
[16,null,null,"N/A",null,11,0,null,16.5,0,null,null,0]
[17,null,null,"N/A",null,11,0,null,16.5,0,null,null,0]
[18,null,null,"N/A",null,11,{"$f":"E26*F26","v":0},null,16.5,{"$f":"H26*I26","v":0},null,null,{"$f":"K26*L26","v":0}]
[19,null,null,"N/A",null,11,0,null,16.5,{"$f":"H27*I27","v":0},null,null,0]
[20,null,null,"N/A",null,11,0,null,16.5,{"$f":"H28*I28","v":0},null,null,0]
[21,null,null,"N/A",null,11,0,null,16.5,{"$f":"H29*I29","v":0},null,null,0]
[22,null,null,"N/A",null,11,0,null,16.5,0,null,null,0]
[23,null,null,"N/A",null,11,0,null,16.5,0,null,null,0]
[24,null,null,"N/A",null,11,0,null,16.5,0,null,null,0]
[25,null,null,"N/A",null,11,0,null,16.5,0,null,null,0]
[26,null,null,"N/A",null,11,0,null,16.5,0,null,null,0]
[27,null,null,"N/A",null,11,0,null,16.5,0,null,null,0]
[28,null,null,"N/A",null,11,0,null,16.5,0,null,null,0]
[29,null,null,"N/A",null,11,0,null,16.5,0,null,null,0]
[30,null,null,"N/A",null,11,{"$f":"E38*F38","v":0},null,16.5,0,null,null,{"$f":"K38*L38","v":0}]
[31,null,null,"N/A",null,11,0,null,16.5,0,null,null,0]
[32,null,null,"N/A",null,11,0,null,16.5,0,null,null,0]
[33,null,null,"N/A",null,11,0,null,16.5,0,null,null,0]
[34,null,null,"N/A",null,11,0,null,16.5,0,null,null,0]
[35,null,null,"N/A",null,11,0,null,16.5,0,null,null,0]
[36,null,null,"N/A",null,11,0,null,16.5,0,null,null,0]
[37,null,null,"N/A",null,11,0,null,16.5,0,null,null,0]
[38,null,null,"N/A",null,11,{"$f":"E46*F46","v":0},null,16.5,0,null,null,{"$f":"K46*L46","v":0}]
[39,null,null,"N/A",null,11,0,null,16.5,0,null,null,0]
[40,null,null,"N/A",null,11,0,null,16.5,0,null,null,0]
[41,null,null,"N/A",null,11,0,null,16.5,0,null,null,0]
[42,null,null,"N/A",null,11,0,null,16.5,0,null,null,0]
[43,null,null,"N/A",null,11,0,null,16.5,0,null,null,0]
[44,null,null,"N/A",null,11,0,null,16.5,0,null,null,0]
[45,null,null,"N/A",null,11,0,null,16.5,0,null,null,0]
[46,null,null,"N/A",null,11,0,null,16.5,0,null,null,0]
[47,null,null,"N/A",null,11,{"$f":"E55*F55","v":0},null,16.5,0,null,null,{"$f":"K55*L55","v":0}]
[48,null,null,"N/A",null,11,0,null,16.5,0,null,null,0]
[49,null,null,"N/A",null,11,0,null,16.5,0,null,null,0]
[50,null,null,"N/A",null,11,0,null,16.5,0,null,null,0]
[51,null,null,"N/A",null,11,0,null,16.5,0,null,null,0]
[52,null,null,"N/A",null,11,0,null,16.5,0,null,null,0]
[53,null,null,"N/A",null,11,0,null,16.5,0,null,null,0]
[54,null,null,"N/A",null,11,0,null,16.5,0,null,null,0]
[55,null,null,"N/A",null,11,{"$f":"E63*F63","v":0},null,16.5,{"$f":"H63*I63","v":0},null,null,{"$f":"K63*L63","v":0}]
[56,null,null,"N/A",null,11,0,null,16.5,{"$f":"H64*I64","v":0},null,null,0]
[57,null,null,"N/A",null,11,0,null,16.5,{"$f":"H65*I65","v":0},null,null,0]
[58,null,null,"N/A",null,11,0,null,16.5,{"$f":"H66*I66","v":0},null,null,0]
[59,null,null,"N/A",null,11,0,null,16.5,0,null,null,0]
[60,null,null,"N/A",null,11,0,null,16.5,0,null,null,0]
[61,null,null,"N/A",null,11,0,null,16.5,0,null,null,0]
[62,null,null,"N/A",null,11,0,null,16.5,0,null,null,0]
[63,null,null,"N/A",null,11,0,null,16.5,0,null,null,0]
[64,null,null,"N/A",null,11,0,null,16.5,0,null,null,0]
[65,null,null,"N/A",null,11,0,null,16.5,0,null,null,0]
[66,null,null,"N/A",null,11,0,null,16.5,0,null,null,0]
[67,null,null,"N/A",null,11,{"$f":"E75*F75","v":0},null,16.5,0,null,null,{"$f":"K75*L75","v":0}]
[68,null,null,"N/A",null,11,0,null,16.5,0,null,null,0]
[69,null,null,"N/A",null,11,0,null,16.5,0,null,null,0]
[70,null,null,"N/A",null,11,0,null,16.5,0,null,null,0]
[71,null,null,"N/A",null,11,0,null,16.5,0,null,null,0]
[72,null,null,"N/A",null,11,0,null,16.5,0,null,null,0]
[73,null,null,"N/A",null,11,{"$f":"E81*F81","v":0},null,16.5,{"$f":"H81*I81","v":0},null,null,{"$f":"K81*L81","v":0}]
[74,null,null,"N/A",null,11,0,null,16.5,0,null,null,0]
[75,null,null,"N/A",null,11,0,null,16.5,0,null,null,0]
[76,null,null,"N/A",null,11,0,null,16.5,0,null,null,0]
[77,null,null,"N/A",null,11,0,null,16.5,0,null,null,0]
[78,null,null,"N/A",null,11,0,null,16.5,0,null,null,0]
[79,null,null,"N/A",null,11,0,null,16.5,0,null,null,0]
[80,null,null,"N/A",null,11,0,null,16.5,0,null,null,0]
[81,null,null,"N/A",null,11,0,null,16.5,0,null,null,0]
[82,null,null,"N/A",null,11,0,null,16.5,0,null,null,0]
[83,null,null,"N/A",null,11,0,null,16.5,0,null,null,0]
[84,null,null,"N/A",null,11,0,null,16.5,0,null,null,0]
[85,null,null,"N/A",null,11,0,null,16.5,0,null,null,0]
[86,null,null,"N/A",null,11,0,null,16.5,0,null,null,0]
[87,null,null,"N/A",null,11,0,null,16.5,{"$f":"H95*I95","v":0},null,null,0]
[88,null,null,"N/A",null,11,0,null,16.5,0,null,null,0]
[89,null,null,"N/A",null,11,0,null,16.5,0,null,null,0]
[90,null,null,"N/A",null,11,0,null,16.5,0,null,null,0]
[91,null,null,"N/A",null,11,0,null,16.5,0,null,null,0]
[92,null,null,"N/A",null,11,0,null,16.5,0,null,null,0]
[93,null,null,"N/A",null,11,0,null,16.5,0,null,null,0]
[94,null,null,"N/A",null,11,0,null,16.5,0,null,null,0]
[95,null,null,"N/A",null,11,0,null,16.5,0,null,null,0]
[null,"TOTALS",null,{"$f":"SUM(D9:D103)","v":0},null,null,{"$f":"SUM(G9:G103)","v":0},null,null,{"$f":"SUM(J9:J103)","v":0},null,null,{"$f":"SUM(M9:M103)","v":0}]
[null,null,null,"(Line 3b)",null,null,"(Line 2a)",null,null,"(Line 2b)",null,null,"(Line 5b)"]
[]
["RETURN ATTACHMENT \"B\" WITH THE COUNTY'S REIMBURSEMENT REQUEST"]

{"sheet":"C1-Instructions","index":7,"n_rows":29,"n_cols":3,"rows_kept":29,"cut":false,"hidden":false,"merged":[[28,0,29,10],[5,0,5,10],[2,4,2,10],[25,0,25,10],[18,0,18,10],[20,0,20,10],[22,0,22,10],[24,0,24,10],[13,0,13,10],[15,0,15,10],[26,0,26,10],[23,0,23,10],[17,0,17,10],[21,0,21,10],[16,0,16,10],[11,0,11,10],[0,0,0,10],[4,0,4,10],[6,0,6,10],[8,0,8,10],[10,0,10,10],[7,0,7,10],[9,0,9,10],[19,0,19,10],[2,2,2,3],[3,0,3,10],[1,0,1,10],[12,0,12,10],[14,0,14,10]]}
["EXTRA HELP PAY "]
["ATTACHMENTS “C1” AND \"C2\""]
["COUNTY: ",null,{"$f":"REQUEST!C4","v":0}]
[]
["Attachment “C1” contains tables for documenting workers, other than those poll workers identified on Attachment \"A\", who were designated by the county election commission to deliver election materials for the polling sites to the poll workers.  The tables also document payment for the county's absentee ballot processors, election night vote tabulators, and the extra deputy hired by the county clerk to carry out the requirements of absentee and early voting. Extra Help is defined as contract labor and temporary-full time and temporary part-time individuals hired by the county only during limited parts of the year to assist the commission with elections. WAGES OR SALARY OF PERMANENT FULL-TIME OR PERMANENT PART-TIME COUNTY EMPLOYEES ARE NOT ELIGIBLE FOR REIMBURSEMENT.                                                             "]
["INSTRUCTIONS:"]
["Section 1: List the names of the workers designated by the county election commission to deliver election materials for the polling sites to the poll workers. DO NOT INCLUDE poll workers who deliver election materials. Their expenses were previously claimed on Attachment \"A.\"  DO NOT INCLUDE workers designated to deliver voting equipment. Their expenses are to be reported on Attachment \"H1\".   "]
[]
["Section 2: Record the hours worked by the workers designated by the county election commission to deliver election materials for the polling sites to the poll workers. Wages will automatically calculate at the current state minimum wage of $11.00 hourly.  "]
[]
["Section 3: Record the number of miles traveled by the workers designated by the county election commission to deliver election materials for the polling sites to the poll workers. Record the rate at which the workers were paid by the county up to the maximum rate of $.52 per mile. Mileage expense will automatically calculate. "]
[]
["Section 4: List the names of the election clerks appointed by the county election commission to process absentee ballots on election day. "]
[]
["Section 5: Record the hours worked by the election clerks who processed absentee ballots on election day. A.C.A. 7-4-112 requires that they be paid a minimum of the prevailing federal minimum wage. Wages will automatically calculate at the current state minimum wage of $11.00 hourly. "]
[]
["Section 6: List the names of the election officials who were appointed by the county election commission to tabulate votes at a central counting location.  "]
[]
["Section 7: Record the hours worked by the election officials who were appointed by the county election commission to tabulate votes at a central counting location. A.C.A. 7-4-112 requires that they be paid a minimum of the prevailing minimum wage. Wages will automatically calculate at the current state minimum wage of $11.00 hourly."]
[]
["Section 8: List the name of the extra deputy hired by the county clerk for the purpose of carrying out the requirements of absentee and early voting.  In counties with more than one (1) county seat, provide the name of the extra deputy for each county seat."]
[]
["Section 9: Record the regular hours worked by the extra deputy. A.C.A. 7-5-415 requires that he or she be paid at least minimum wage for up to a maximum of 35 days. The reimbursement rate is the current state minimum wage of $11.00 for the actual number of hours worked up to the maximum number of hours allowable by law: 205 hours (45 for early voting plus 160 for absentee)."]
[]
["Section 10: Overtime hours that are required by law for an extra deputy when early voting is conducted by the clerk's office are ONLY applicable to preferential primary elections."]
[]
["Each “TOTAL” will automatically calculate.  Each \"TOTAL\" on Attachment \"C1\" will then automatically post on the appropriate lines on the “SUMMARY OF COSTS” worksheet. The totals on the \"SUMMARY OF COSTS\" worksheet will, in turn, automatically post on the appropriate lines on the \"COUNTY REIMBURSEMENT REQUEST\" worksheet."]
[]
["RETURN ATTACHMENT “C1” WITH THE COUNTY'S REIMBURSEMENT REQUEST"]

{"sheet":"C1-Form","index":8,"n_rows":56,"n_cols":13,"rows_kept":56,"cut":false,"hidden":false,"merged":[[62,0,62,12],[55,0,57,12],[53,0,53,4],[52,1,52,4],[52,7,53,8],[47,10,47,12],[48,10,48,12],[49,10,49,12],[50,0,50,2],[48,7,48,9],[47,0,49,2],[60,0,60,12],[61,0,61,12],[51,0,51,2],[51,10,51,12],[49,5,49,6],[50,10,50,12],[59,0,59,12],[54,0,54,12],[52,10,52,12],[53,10,53,12],[58,0,58,12],[47,3,48,6],[45,0,45,12],[47,7,47,9],[4,3,4,6],[25,0,25,2],[7,0,7,2],[18,10,18,12],[20,10,20,12],[21,10,21,12],[22,10,22,12],[39,0,39,2],[40,0,40,2],[10,10,10,12],[11,10,11,12],[46,7,46,9],[41,0,41,2],[6,0,6,2],[46,3,46,6],[46,0,46,2],[46,10,46,12],[43,7,44,11],[43,0,44,4],[38,7,38,9],[36,0,36,2],[31,0,31,2],[2,0,2,1],[2,2,2,3],[35,0,35,2],[35,7,35,9],[32,0,32,2],[8,10,8,12],[9,10,9,12],[24,0,24,12],[29,7,29,9],[28,0,28,2],[27,7,27,9],[8,0,8,2],[14,0,14,2],[9,0,9,2],[10,0,10,2],[16,10,16,12],[17,10,17,12],[11,0,11,2],[12,0,12,2],[13,0,13,2],[19,10,19,12],[23,10,23,12],[22,0,23,4],[29,0,29,2],[0,0,0,12],[1,0,1,12],[2,4,2,12],[3,0,3,12],[4,10,4,12],[5,10,5,12],[4,0,4,2],[4,7,4,9],[22,7,23,8],[12,10,12,12],[21,0,21,2],[13,10,13,12],[14,10,14,12],[15,10,15,12],[18,0,18,2],[20,0,20,2],[15,0,15,2],[5,0,5,9],[6,10,6,12],[7,10,7,12],[6,5,6,6],[19,0,19,2],[16,0,16,2],[17,0,17,2],[42,0,42,2],[42,7,42,9],[40,7,40,9],[25,3,25,5],[30,0,30,2],[25,7,25,9],[37,0,37,2],[36,7,36,9],[37,7,37,9],[38,0,38,2],[26,7,26,12],[30,7,30,9],[31,7,31,9],[32,7,32,9],[33,7,33,9],[34,0,34,2],[33,0,33,2],[39,7,39,9],[28,7,28,9],[25,10,25,12],[27,0,27,2],[41,7,41,9],[26,0,26,5],[34,7,34,9]]}
["EXTRA HELP PAY "]
["ATTACHMENT “C1”  "]
["COUNTY: ",null,{"$f":"REQUEST!C4","v":0}]
[]
["Section 1",null,null,"Section 2",null,null,null,"Section 3"]
["WORKERS DESIGNATED TO DELIVER ELECTION MATERIALS"]
["NAMES",null,null,"HOURS","RATE","WAGES",null,"MILES","RATE","EXPENSE"]
[null,null,null,null,11,{"$f":"D8*E8","v":0},null,null,null,{"$f":"H8*I8","v":0}]
[null,null,null,null,11,{"$f":"D9*E9","v":0},null,null,null,{"$f":"H9*I9","v":0}]
[null,null,null,null,11,0,null,null,null,0]
[null,null,null,null,11,0,null,null,null,0]
[null,null,null,null,11,0,null,null,null,0]
[null,null,null,null,11,0,null,null,null,0]
[null,null,null,null,11,{"$f":"D14*E14","v":0},null,null,null,{"$f":"H14*I14","v":0}]
[null,null,null,null,11,{"$f":"D15*E15","v":0},null,null,null,{"$f":"H15*I15","v":0}]
[null,null,null,null,11,{"$f":"D16*E16","v":0},null,null,null,{"$f":"H16*I16","v":0}]
[null,null,null,null,11,{"$f":"D17*E17","v":0},null,null,null,{"$f":"H17*I17","v":0}]
[null,null,null,null,11,{"$f":"D18*E18","v":0},null,null,null,{"$f":"H18*I18","v":0}]
[null,null,null,null,11,0,null,null,null,0]
[null,null,null,null,11,0,null,null,null,0]
[null,null,null,null,11,0,null,null,null,0]
[null,null,null,null,11,0,null,null,null,{"$f":"H22*I22","v":0}]
["TOTALS",null,null,null,null,{"$f":"SUM(F8:F22)","v":0},null,null,null,{"$f":"SUM(J8:J22)","v":0}]
[null,null,null,null,null,"(Line 4b)",null,null,null,"(Line 5c)"]
[]
["Section 4",null,null,"Section 5",null,null,null,"Section 6",null,null,"Section 7"]
["ELECTION CLERKS PROCESSING ABSENTEE BALLOTS",null,null,null,null,null,null,"ELECTION OFFICIALS TABULATING VOTES "]
["NAMES",null,null,"HOURS","RATE","WAGES",null,"NAMES",null,null,"HOURS","RATE","WAGES"]
[null,null,null,null,11,{"$f":"D29*E29","v":0},null,null,null,null,null,11,{"$f":"K29*L29","v":0}]
[null,null,null,null,11,{"$f":"D30*E30","v":0},null,null,null,null,null,11,{"$f":"K30*L30","v":0}]
[null,null,null,null,11,0,null,null,null,null,null,11,0]
[null,null,null,null,11,0,null,null,null,null,null,11,0]
[null,null,null,null,11,0,null,null,null,null,null,11,0]
[null,null,null,null,11,0,null,null,null,null,null,11,0]
[null,null,null,null,11,{"$f":"D35*E35","v":0},null,null,null,null,null,11,0]
[null,null,null,null,11,{"$f":"D36*E36","v":0},null,null,null,null,null,11,{"$f":"K36*L36","v":0}]
[null,null,null,null,11,{"$f":"D37*E37","v":0},null,null,null,null,null,11,{"$f":"K37*L37","v":0}]
[null,null,null,null,11,{"$f":"D38*E38","v":0},null,null,null,null,null,11,{"$f":"K38*L38","v":0}]
[null,null,null,null,11,{"$f":"D39*E39","v":0},null,null,null,null,null,11,{"$f":"K39*L39","v":0}]
[null,null,null,null,11,0,null,null,null,null,null,11,{"$f":"K40*L40","v":0}]
[null,null,null,null,11,0,null,null,null,null,null,11,0]
[null,null,null,null,11,0,null,null,null,null,null,11,0]
[null,null,null,null,11,0,null,null,null,null,null,11,0]
["TOTAL",null,null,null,null,{"$f":"SUM(F29:F43)","v":0},null,"TOTAL",null,null,null,null,{"$f":"SUM(M29:M43)","v":0}]
[null,null,null,null,null,"(Line 4c)",null,null,null,null,null,null,"(Line 4d)"]
[]
["Section 8",null,null,"Section 9",null,null,null,"Section 10"]
["COUNTY CLERK EXTRA DEPUTY",null,null,"REGULAR WAGES",null,null,null,"OVERTIME WAGES"]
[null,null,null,null,null,null,null,"(when required by law)"]
[null,null,null,"HOURS","RATE","WAGES",null,"HOURS","RATE","WAGES"]
[null,null,null,null,11,{"$f":"D51*E51","v":0},null,null,null,{"$f":"H51*I51","v":0}]
[null,null,null,null,11,{"$f":"D52*E52","v":0},null,null,null,{"$f":"H52*I52","v":0}]
["TOTALS","(See instructions for maximum hours)",null,null,null,{"$f":"SUM(F51:F52)","v":0},null,null,null,{"$f":"SUM(J51:J52)","v":0}]
[null,null,null,null,null,"(Line 4e)",null,null,null,"(Line 4f)"]
[]
["RETURN ATTACHMENT “C1” WITH THE COUNTY'S REIMBURSEMENT REQUEST"]

{"sheet":"C2","index":9,"n_rows":37,"n_cols":11,"rows_kept":37,"cut":false,"hidden":false,"merged":[[36,0,38,10],[2,1,2,2],[20,6,20,7],[19,0,19,1],[19,6,19,7],[4,0,4,10],[2,3,2,10],[24,0,25,3],[21,0,21,1],[14,0,14,1],[24,6,25,9],[34,0,34,10],[33,0,33,10],[15,0,15,1],[20,0,20,1],[22,0,22,1],[18,6,18,7],[18,0,18,1],[6,0,6,1],[6,2,6,4],[12,0,12,1],[13,0,13,1],[16,0,16,1],[16,6,16,7],[17,0,17,1],[17,6,17,7],[15,6,15,7],[35,0,35,10],[31,0,31,10],[26,0,26,10],[28,0,28,10],[30,0,30,10],[32,0,32,10],[5,0,5,10],[9,0,9,1],[10,0,10,1],[11,0,11,1],[10,6,10,7],[7,0,7,4],[7,6,7,10],[8,6,8,7],[0,0,0,10],[27,0,27,10],[29,0,29,10],[6,6,6,7],[6,8,6,10],[9,6,9,7],[11,6,11,7],[23,0,23,1],[12,6,12,7],[21,6,21,7],[22,6,22,7],[23,6,23,7],[13,6,13,7],[14,6,14,7],[1,0,1,10],[3,0,3,10]]}
["EXTRA HELP PAY "]
["ATTACHMENT “C2” for Primary Elections  "]
["COUNTY: ",{"$f":"REQUEST!C4","v":0}]
[]
["Attachment \"C2\" contains tables for documenting two categories of election expenses: funding for workers designated by the county board to prepare and package election materials and funding for workers to unpack and store election materials after the election.                                              "]
[]
["Section 1",null,"Section 2",null,null,null,"Section 3",null,"Section 4"]
["WORKERS DESIGNATED TO PREPARE/PACKAGE ELECTION MATERIALS",null,null,null,null,null,"WORKERS DESIGNATED TO UNPACK/STORE ELECTION MATERIALS"]
["NAMES",null,"HOURS","RATE","WAGES",null,"NAMES",null,"HOURS","RATE","WAGES"]
[null,null,null,11,{"$f":"C10*D10","v":0},null,null,null,null,11,{"$f":"I10*J10","v":0}]
[null,null,null,11,{"$f":"C11*D11","v":0},null,null,null,null,11,{"$f":"I11*J11","v":0}]
[null,null,null,11,0,null,null,null,null,11,0]
[null,null,null,11,0,null,null,null,null,11,0]
[null,null,null,11,0,null,null,null,null,11,0]
[null,null,null,11,{"$f":"C15*D15","v":0},null,null,null,null,11,{"$f":"I15*J15","v":0}]
[null,null,null,11,0,null,null,null,null,11,0]
[null,null,null,11,0,null,null,null,null,11,0]
[null,null,null,11,0,null,null,null,null,11,0]
[null,null,null,11,0,null,null,null,null,11,0]
[null,null,null,11,{"$f":"C20*D20","v":0},null,null,null,null,11,{"$f":"I20*J20","v":0}]
[null,null,null,11,0,null,null,null,null,11,0]
[null,null,null,11,0,null,null,null,null,11,0]
[null,null,null,11,0,null,null,null,null,11,0]
[null,null,null,11,0,null,null,null,null,11,0]
["TOTAL",null,null,null,{"$f":"SUM(E10:E24)","v":0},null,"TOTAL",null,null,null,{"$f":"SUM(K10:K24)","v":0}]
[null,null,null,null,"(Line 4g)",null,null,null,null,null,"(Line 4h)"]
["INSTRUCTIONS:"]
["Section 1: List the names of the workers designated by the county election commission to prepare and package election materials for the polling sites."]
[]
["Section 2: Record the hours worked by the workers designated by the county election commission to prepare and package election materials for the polling sites. Wages will automatically calculate at the current state minimum wage of $11.00 hourly."]
[]
["Section 3: List the names of the workers designated by the county election commission to unpack and store election materials from the polling sites after the election."]
[]
["Section 4: Record the hours worked by the workers designated by the county election commission to unpack and store election materials from the polling sites after the election. Wages will automatically calculate at the current state minimum wage of $11.00 hourly."]
[]
["Each “TOTAL” will automatically calculate. Each \"TOTAL\" on Attachment “C2” will then automatically post on the appropriate lines on the “SUMMARY OF COSTS” worksheet. The totals on the \"SUMMARY OF COSTS\" worksheet will, in turn, automatically post on the appropriate lines on the \"COUNTY REIMBURSEMENT REQUEST\" worksheet."]
["RETURN ATTACHMENT “C2” WITH THE COUNTY'S REIMBURSEMENT REQUEST"]

{"sheet":"D","index":10,"n_rows":40,"n_cols":9,"rows_kept":40,"cut":false,"hidden":false,"merged":[[39,1,39,9],[27,3,27,4],[23,3,23,4],[27,7,27,8],[24,7,24,8],[31,1,31,9],[28,3,28,4],[25,1,25,2],[25,3,25,4],[28,7,28,8],[23,1,23,2],[27,1,27,2],[37,1,37,9],[34,1,34,9],[33,1,33,9],[36,1,36,9],[7,1,8,3],[12,8,12,9],[7,4,7,9],[9,6,9,7],[17,1,18,2],[17,5,17,8],[9,8,9,9],[9,4,9,5],[10,6,10,7],[10,8,10,9],[19,7,19,8],[32,1,32,9],[28,1,28,2],[29,1,29,9],[24,3,24,4],[24,1,24,2],[35,1,35,9],[20,7,20,8],[21,7,21,8],[20,1,20,2],[20,3,20,4],[21,3,21,4],[22,3,22,4],[23,7,23,8],[21,1,21,2],[22,7,22,8],[0,1,0,9],[4,1,4,9],[13,1,13,7],[11,6,11,7],[11,8,11,9],[10,4,10,5],[6,1,6,3],[6,4,6,9],[2,3,2,9],[5,0,5,9],[13,8,13,9],[3,0,3,9],[8,6,8,7],[8,8,8,9],[9,1,9,3],[10,1,10,3],[1,1,1,9],[15,1,15,8],[22,1,22,2],[26,1,26,2],[26,3,26,4],[26,7,26,8],[25,7,25,8],[8,4,8,5],[11,1,11,3],[11,4,11,5],[16,1,16,8],[17,3,18,4],[18,7,18,8],[14,0,14,9],[19,1,19,2],[19,3,19,4]]}
[null,"ELECTION COMMISSIONERS PAY"]
[null,"ATTACHMENT “D” "]
[null,"COUNTY: ",{"$f":"REQUEST!C4","v":0}]
[]
[null,"A county election commissioner cannot be compensated for election-related duties, except as provided by law for public meetings. Attachment \"D\" contains tables for computing election commissioners pay for public meetings and for recording the meetings held.  A.C.A. 7-4-111 requires that, for their services, commissioners be compensated at least $25 per commissioner per public meeting when official business is conducted.  A county is eligible to receive funding for election commissioners pay up to a maximum of $100 per public meeting attended, up to a maximum of ten (10) public meetings per commissioner per state-funded election. Examples of public meetings include drawing for ballot position, certification of ballots, selection of polling sites, designation of election officials, correction of ballot errors, canvassing and certification of election results, certification of recounts, and election day. "]
[]
[null,"Section 1",null,null,"Section 2"]
[null,"NAMES OF COMMISSIONERS",null,null,"ELECTION COMMISSIONERS PAY"]
[null,null,null,null,"# OF MEETINGS",null,"RATE",null,"WAGES"]
[null,null,null,null,null,null,null,null,{"$f":"E10*G10","v":0}]
[null,null,null,null,null,null,null,null,{"$f":"E11*G11","v":0}]
[null,null,null,null,null,null,null,null,{"$f":"E12*G12","v":0}]
[null,"TOTAL",null,null,null,null,null,"(MAXIMUM 10 MEETINGS/MAXIMUM RATE OF $100)",{"$f":"SUM(I10:I12)","v":0}]
[null,null,null,null,null,null,null,null,"(Line 6)"]
[]
[null,"Section 3"]
[null,"COMMISSION MEETINGS"]
[null,"Purpose",null,"Date",null,"Attending"]
[null,null,null,null,null,"D","R","R"]
[1]
[2]
[3]
[4]
[5]
[6]
[7]
[8]
[9]
[10]
[null,"INSTRUCTIONS:"]
[null,"Section 1: List the names of the county election commissioners for whom reimbursement is being requested."]
[]
[null,"Section 2:  Record the total number of public meetings attended by each county election commissioner up to a maximum of ten (10) public meetings each. Record the rate at which each commissioner was paid by the county up to the maximum $100 allowed by the State Board. Wages will automatically calculate. "]
[]
[null,"Section 3: Record the purpose and dates of the meetings that were held (such as 02/01/22) and indicate who attended by checking the appropriate boxes."]
[]
[null,"The “TOTAL” will automatically calculate. The \"TOTAL\" on Attachment \"D\" will then automatically post on the appropriate line on the “SUMMARY OF COSTS” worksheet. The total on the \"SUMMARY OF COSTS\" worksheet will, in turn, automatically post on the appropriate line on the \"COUNTY REIMBURSEMENT REQUEST\" worksheet."]
[]
[]
[null,"RETURN ATTACHMENT \"D\" WITH THE COUNTY'S REIMBURSEMENT REQUEST"]

{"sheet":"E","index":11,"n_rows":27,"n_cols":8,"rows_kept":27,"cut":false,"hidden":false,"merged":[[25,0,25,10],[2,0,2,10],[4,3,4,4],[4,5,4,10],[16,0,16,10],[15,5,15,7],[17,0,17,10],[21,0,21,10],[8,5,8,7],[9,5,9,7],[15,8,15,10],[20,2,20,10],[19,2,19,5],[19,7,19,10],[14,5,14,7],[18,0,18,10],[8,0,8,3],[9,0,9,3],[9,8,9,10],[24,0,24,10],[23,0,23,10],[22,2,22,10],[10,5,10,7],[11,5,11,7],[12,5,12,7],[13,5,13,7],[15,0,15,3],[13,8,13,10],[14,8,14,10],[0,0,0,10],[26,0,28,10],[1,0,1,10],[3,0,3,10],[5,0,5,10],[6,0,6,10],[11,0,11,3],[12,0,12,3],[8,8,8,10],[10,8,10,10],[11,8,11,10],[10,0,10,3],[13,0,13,3],[14,0,14,3],[12,8,12,10],[7,0,7,10]]}
["SUPPLY COSTS"]
["THIS SHEET IS ONLY APPLICABLE FOR PREFERENTIAL PRIMARY ELECTIONS. YOU MUST ITEMIZE USING ATTACHMENTS \"F\" & \"G\" FOR ALL OTHER STATE FUNDED ELECTIONS."]
["ATTACHMENT “E” for Primary Runoff Elections "]
[]
["COUNTY: ",null,null,{"$f":"REQUEST!C4","v":0}]
[]
["Attachment “E” contains a table of funding allowances for covering the cost of supplies for preferential primary elections.  The funding allowances were based upon analyses of comparative state-funded election costs maintained by the State Board and estimations of average costs per poll. If you do not wish to itemize the county's supply costs for the election, determine your funding allowance for supply costs using the chart below. Otherwise, use Attachments \"F\" and \"G\" to itemize supply costs for the election. Eligible supply costs include funding for disposable supplies such as pens, pencils, pads, tape, magnifying sheets/glasses, spools of string for marking electioneering areas, ballot marking instruments and devices, envelopes, ballot boxes, seals, stub boxes, election kits, paper, postage for mailing absentee application requests and ballots and for official notice to poll workers and polling sites, RTAL paper for voting machines, and thermal printer paper for communication packs and scanners. The State Board DOES NOT PROVIDE FUNDING FOR capital or leasehold improvements to polling sites; funding for non-expendable equipment and supplies such as voting booths, electric pencil sharpeners, thermal binding machines, pagers, outlet strips, extension cords, adapters, phone cords, and expensive metal signage; funding for certain expendable supplies such as batteries, copier toner, printer toner cartridges, printer ribbons, hanging file folders, manila file folders, binders, and flags; or funding for the cost of binding voter books, for reproduction of training materials, for phone lines, portable toilet rental, furniture rental, or for food. "]
[]
[null,null,null,null,"# OF","FUNDING"]
[null,null,null,null,"POLLS","ALLOWANCES"]
[null,null,null,null,"1-10",600]
[null,null,null,null,"11-20",800]
[null,null,null,null,"21-30",1000]
[null,null,null,null,"31-50",2000]
[null,null,null,null,"51-100",2500]
[null,null,null,null,"101+",4000]
[]
["INSTRUCTIONS:"]
["Check the appropriate box below:"]
[null,null,"Claiming a Funding Allowance in the amount of: $     ",null,null,null,"N/A","(record the appropriate funding allowance from "]
[null,null,"the chart on the blank line); WILL NOT be completing Attachments \"F\" & \"G\" "]
[]
[null,null,"Will be itemizing supply costs and completing Attachments \"F\" & \"G\""]
[]
["The funding allowance recorded on the blank line will automatically post on the appropriate line on the “SUMMARY OF COSTS” worksheet. The total on the \"SUMMARY OF COSTS\" worksheet will, in turn, automatically post on the appropriate line on the \"COUNTY REIMBURSEMENT REQUEST\" worksheet. "]
[]
["RETURN ATTACHMENT “E” WITH THE COUNTY'S REIMBURSEMENT REQUEST "]

{"sheet":"F","index":12,"n_rows":35,"n_cols":11,"rows_kept":35,"cut":false,"hidden":false,"merged":[[33,0,33,11],[31,0,31,7],[31,9,31,11],[32,0,32,7],[32,9,32,11],[34,0,34,11],[13,0,13,1],[25,0,25,11],[30,0,30,11],[7,0,7,7],[8,0,8,7],[9,0,9,7],[22,0,22,11],[26,0,26,11],[28,0,28,11],[11,0,11,8],[12,0,12,8],[20,0,21,5],[11,10,12,11],[10,0,10,7],[19,0,19,11],[0,0,0,11],[13,9,13,11],[27,0,27,11],[29,0,29,11],[4,0,4,11],[1,0,1,11],[2,2,2,4],[2,5,2,11],[3,0,3,11],[5,0,5,11],[6,0,6,11],[20,8,20,11],[23,0,23,11],[24,0,24,11],[21,8,21,11],[7,8,7,9],[8,8,8,9],[9,8,9,9],[10,8,10,9],[7,10,7,11],[8,10,8,11],[9,10,9,11],[10,10,10,11]]}
["COUNTY CLERK ABSENTEE SUPPLY COSTS"]
["ATTACHMENT “F” "]
["COUNTY: ",null,{"$f":"REQUEST!C4","v":0}]
[]
["Attachment “F” documents costs incurred by the county clerk's office for mailing absentee applications and ballots for this election. You MUST COMPLETE Attachment \"F\" to be reimbursed for county clerk supplies and Attachment \"G\" to be reimbursed for commission supplies.                                                                                           "]
[]
["ABSENTEES:"]
["Number of absentee ballot application forms mailed: "]
["Number of absentee ballots delivered (including mailed): "]
["Number of absentee ballots mailed:"]
["Number of envelopes used per each absentee ballot delivered (i.e.: 2, 3, 4):"]
[null,null,null,null,null,null,null,null,null,"Invoice ","Inventory"]
[null,null,null,null,null,null,null,null,null,"Attached"]
["Item",null,null,"Quantity",null,"Per Unit Cost",null,"Total Cost",null,"(see marking instructions below)"]
["Absentee Envelopes",null,null,{"$f":"I8+(I9*I11)","v":0},"$",null,"$",{"$f":"D15*F15","v":0}]
["Application Postage",null,null,{"$f":"I8","v":0},"$",null,"$",{"$f":"D16*F16","v":0}]
["Ballot Postage",null,null,{"$f":"I10","v":0},"$",null,"$",{"$f":"D17*F17","v":0}]
["Marking Devices",null,null,{"$f":"I9","v":0},"$",null,"$",{"$f":"D18*F18","v":0}]
["Voter Statements",null,null,{"$f":"I9","v":0},"$",null,"$",{"$f":"D19*F19","v":0}]
[]
["TOTAL",null,null,null,null,null,"$",{"$f":"SUM(H15:H19)","v":0}]
[null,null,null,null,null,null,null,"(Line 7b)"]
["INSTRUCTIONS:"]
["Quantities will automatically calculate based on the statistics provided. Record the unit cost of ONLY those supply items used for this specific state-funded election. Costs will automatically calculate."]
[]
["Place an \"X\" by each item being claimed to indicate that either an invoice is attached or the item is from an inventory of supplies previously purchased."]
[]
["The “TOTAL” will automatically calculate. The \"TOTAL\" on Attachment \"F\" will then automatically post on the appropriate line on the “SUMMARY OF COSTS” worksheet. The total on the \"SUMMARY OF COSTS\" worksheet will, in turn, automatically post on the appropriate line on the \"COUNTY REIMBURSEMENT REQUEST\" worksheet."]
[]
["COUNTY CLERK CERTIFICATION: "]
["I verify that the above supply expenses represent costs of the county clerk's office to conduct absentee voting applicable to only this state-funded election for which seeking reimbursement."]
[]
["County Clerk Signature",null,null,null,null,null,null,null,null,"Date"]
[]
["RETURN ATTACHMENT \"F\" IF ITEMIZING, ALONG WITH INVOICES, RECEIPTS, AND/OR SUPPORTING DOCUMENTATION FOR ALL SUPPLY ITEMS CLAIMED                         "]

{"sheet":"G","index":13,"n_rows":44,"n_cols":11,"rows_kept":44,"cut":false,"hidden":false,"merged":[[37,0,37,12],[38,0,38,11],[42,0,42,12],[43,0,43,12],[33,0,33,12],[34,0,35,5],[34,8,34,12],[35,8,35,12],[36,0,36,12],[41,0,41,11],[39,0,39,12],[40,0,40,12],[28,0,28,2],[29,0,29,2],[30,0,30,2],[31,0,31,2],[32,0,32,2],[23,0,23,2],[24,0,24,11],[25,0,25,2],[26,0,26,2],[27,0,27,2],[18,0,18,2],[19,0,19,2],[20,0,20,2],[21,0,21,2],[22,0,22,2],[13,0,13,2],[14,0,14,2],[15,0,15,2],[16,0,16,11],[17,0,17,2],[4,0,4,12],[9,0,9,2],[10,0,10,11],[11,0,11,2],[12,0,12,2],[5,0,5,7],[5,10,6,11],[7,0,7,2],[8,0,8,2],[6,0,6,2],[0,0,0,12],[1,0,1,12],[2,1,2,3],[2,4,2,12],[3,0,3,12]]}
["COUNTY ELECTION COMMISSION SUPPLY COSTS"]
["ATTACHMENT “G”"]
["COUNTY: ",{"$f":"REQUEST!C4","v":0}]
[]
["Attachment “G” documents costs incurred by the county election commission for election supplies defined by the State Board as eligible for reimbursement. You MUST COMPLETE Attachment \"F\" to be reimbursed for county clerk supplies and Attachment \"G\" to be reimbursed for commission supplies.                                                                                            "]
[null,null,null,null,null,null,null,null,null,"Invoice ","Inventory *give date of purchace"]
["Item",null,null,"Quantity",null,"Per Unit Cost",null,"Total Cost",null,"Attached"]
["Ballot Boxes",null,null,null,null,null,"$",{"$f":"D8*F8","v":0}]
["Stub Boxes",null,null,null,null,null,"$",{"$f":"D9*F9","v":0}]
["Election Kits",null,null,null,null,null,"$",{"$f":"D10*F10","v":0}]
["Envelopes:"]
["   Abandoned Ballot",null,null,null,null,null,"$",{"$f":"D12*F12","v":0}]
["   Provisional Ballot",null,null,null,null,null,"$",{"$f":"D13*F13","v":0}]
["   Spoiled Ballot",null,null,null,null,null,"$",{"$f":"D14*F14","v":0}]
["   Other (specify)",null,null,null,null,null,"$",{"$f":"D15*F15","v":0}]
["Magnifiers",null,null,null,null,null,"$",{"$f":"D16*F16","v":0}]
["Marking Devices:"]
["   Manufacturer",null,null,null,null,null,"$",{"$f":"D18*F18","v":0}]
["   Pencils",null,null,null,null,null,"$",0]
["   Pens",null,null,null,null,null,"$",0]
["Copier Paper",null,null,null,null,null,"$",0]
["Paper Pads",null,null,null,null,null,"$",0]
["RTAL Paper",null,null,null,null,null,"$",0]
["Thermal Printer Paper",null,null,null,null,null,"$",0]
["Postage for Notices Sent to:"]
["   Election Officials",null,null,null,null,null,"$",{"$f":"D26*F26","v":0}]
["   Polling Sites",null,null,null,null,null,"$",0]
["Scissors",null,null,null,null,null,"$",0]
["Seals",null,null,null,null,null,"$",0]
["String (100')",null,null,null,null,null,"$",0]
["Tape",null,null,null,null,null,"$",0]
["Transport Supplies*",null,null,null,null,null,"$",0]
["Other (specify)",null,null,null,null,null,"$",0]
[]
["TOTAL",null,null,null,null,null,"$",{"$f":"SUM(H8:H33)","v":0}]
[null,null,null,null,null,null,null,"(Line 7c)"]
["* Such as inexpensive expendable boxes, envelopes, or containers used to transport election materials to and from the polls"]
["INSTRUCTIONS:"]
["Record the quantities and unit cost of ONLY those supply items used for this specific state-funded election. Costs will automatically calculate."]
[]
["Place an \"X\" by each item being claimed to indicate that either an invoice is attached or the item is from an inventory of supplies previously purchased."]
[]
["The “TOTAL” will automatically calculate. The \"TOTAL\" on Attachment \"G\" will then automatically post on the appropriate line on the “SUMMARY OF COSTS” worksheet. The total on the \"SUMMARY OF COSTS\" worksheet will, in turn, automatically post on the appropriate line on the \"COUNTY REIMBURSEMENT REQUEST\" worksheet."]
["RETURN ATTACHMENT \"G\" ALONG WITH INVOICES, RECEIPTS, AND/OR SUPPORTING DOCUMENTATION FOR ALL SUPPLY ITEMS CLAIMED      "]

{"sheet":"H ","index":14,"n_rows":52,"n_cols":9,"rows_kept":52,"cut":false,"hidden":false,"merged":[[40,0,40,9],[42,0,42,9],[49,0,49,9],[46,0,46,9],[51,0,53,9],[47,0,47,9],[41,0,41,9],[43,0,43,9],[45,0,45,9],[38,0,38,9],[30,0,30,1],[39,0,39,9],[31,0,31,1],[32,0,32,1],[34,0,34,1],[35,0,35,1],[36,0,36,1],[31,2,32,6],[35,2,35,4],[36,2,37,5],[20,2,20,9],[21,2,21,9],[22,0,22,9],[24,0,24,1],[37,0,37,1],[28,0,28,9],[33,0,33,9],[25,2,25,4],[26,2,27,6],[30,2,30,4],[25,0,25,1],[26,0,26,1],[27,0,27,1],[29,0,29,1],[0,0,0,9],[1,0,1,9],[2,0,2,9],[3,0,3,9],[4,0,4,2],[4,5,4,9],[4,3,4,4],[5,0,5,8],[23,0,23,8],[6,0,6,9],[7,0,7,9],[8,0,8,9],[9,2,9,9],[10,2,10,9],[11,2,11,9],[12,0,12,9],[13,2,13,9],[14,2,14,9],[15,2,15,9],[16,0,16,9],[17,2,17,9],[18,2,18,9],[19,2,19,9]]}
["PROGRAMMING COSTS"]
[]
["ATTACHMENTS “H” AND \"H1\""]
[]
["COUNTY: ",null,null,{"$f":"REQUEST!C4","v":0}]
[]
["Attachment “H” identifies types of voting equipment used in the election and costs to the county for vendor programming and contracted site support.                                                                                        "]
[]
["SECTION 1"]
[null,null,"EARLY VOTING BY THE COUNTY CLERK'S OFFICE WAS CONDUCTED USING:"]
["a)",null,"Number of voting machines at the clerk's early voting poll (ES&S Touch Screens)"]
["b)",null,"Number of ES&S electronic vote tabulating devices at the clerk's early voting poll"]
[]
[null,null,"OFF-SITE EARLY VOTING UNDER THE ELECTION COMMISSION WAS CONDUCTED USING:"]
["c)",null,"Total number of voting machines at off-site early voting poll(s)-ES&S Touch Screens"]
["d)",null,"Total number of ES&S electronic vote tabulating devices at off-site early voting poll(s)"]
[]
[null,null,"VOTING AND TABULATION ON ELECTION DAY WAS CONDUCTED USING:"]
["e)",null,"Total number of voting machines at the election day polls (ES&S Touch Screen)"]
["f)",null,"Total number of ES&S electronic vote tabulating devices at the election day polls"]
["g)",null,"Total number of ES&S electronic vote tabulating devices at the central counting location"]
["h)",null,"Total number of ES&S M650 electronic vote tabulating devices at the central counting location "]
[]
[]
[null,null,"Section 2: PROGRAMMING OF VOTING MACHINES AND TABULATING DEVICES"]
[null,null,"Coding",null,null,null,"(Vendor invoice required for reimbursement)","$"]
[null,null,"TOTAL",null,null,null,null,"$",{"$f":"I26","v":0}]
[null,null,null,null,null,null,null,null,"(Line 8a)"]
[]
[null,null,"Section 3: PROGRAMMING OF VOTING MACHINES"]
[null,null,"Audio ",null,null,null,"(Vendor invoice required for reimbursement)","$"]
[null,null,"TOTAL",null,null,null,null,"$",{"$f":"I31","v":0}]
[null,null,null,null,null,null,null,null,"(Line 8b)"]
[]
[null,null,"Section 4: TECHNICAL SUPPORT"]
[null,null,"Contracted Site Support ",null,null,null,"(Vendor invoice required for reimbursement)","$"]
[null,null,"TOTAL",null,null,null,"(MAXIMUM OF $1,080)","$",{"$f":"I36","v":0}]
[null,null,null,null,null,null,null,null,"(Line 8c)"]
["INSTRUCTIONS:"]
["Section 1: Record the number of voting machines and tabulating devices used for the election on the applicable lines."]
[]
["Section 2: Record the charge for Coding from the supporting vendor invoice. "]
[]
["Section 3: Record the charge for Audio from the supporting vendor invoice. "]
[]
["Section 4: Record the charge for Site Support from the supporting vendor invoice. "]
[]
["Each “TOTAL” will automatically calculate. Each \"TOTAL\" on Attachment \"H\" will then automatically post on the appropriate lines on the “SUMMARY OF COSTS” worksheet. The total on the \"SUMMARY OF COSTS\" worksheet will, in turn, automatically post on the appropriate line on the \"COUNTY REIMBURSEMENT REQUEST\" worksheet."]
[]
[]
[]
["RETURN ATTACHMENT \"H\" WITH THE COUNTY'S REIMBURSEMENT REQUEST"]

{"sheet":"H1","index":15,"n_rows":55,"n_cols":16,"rows_kept":55,"cut":false,"hidden":false,"merged":[[0,0,0,15],[1,0,1,15],[2,0,2,15],[3,1,3,6],[50,0,50,15],[52,0,52,15],[51,0,51,15],[29,14,29,15],[30,14,30,15],[31,14,31,15],[44,0,44,15],[45,0,45,15],[46,0,46,15],[47,0,47,15],[48,0,48,15],[49,0,49,15],[37,14,37,15],[38,14,38,15],[39,14,39,15],[40,14,40,15],[41,14,41,15],[41,0,42,11],[29,0,29,5],[32,0,32,5],[8,0,8,5],[9,0,9,1],[7,0,7,5],[24,0,24,2],[19,0,19,2],[12,0,12,2],[20,0,20,2],[21,0,21,2],[22,0,22,2],[23,0,23,2],[31,0,31,5],[15,0,15,2],[16,0,16,2],[17,0,17,2],[18,0,18,2],[53,0,53,15],[54,0,55,15],[32,14,32,15],[33,14,33,15],[34,14,34,15],[35,14,35,15],[43,0,43,15],[25,7,26,11],[22,7,22,9],[23,7,23,9],[24,7,24,9],[36,0,36,5],[37,0,37,5],[36,14,36,15],[42,14,42,15],[38,0,38,5],[39,0,39,5],[40,0,40,5],[36,6,36,11],[10,7,10,9],[3,7,3,15],[4,0,4,15],[5,0,5,15],[6,0,6,15],[35,0,35,5],[10,0,10,2],[11,0,11,2],[20,7,20,9],[21,7,21,9],[11,7,11,9],[13,7,13,9],[14,7,14,9],[7,13,7,15],[25,13,26,14],[8,7,8,15],[9,7,9,8],[12,7,12,9],[7,7,7,12],[13,0,13,2],[14,0,14,2],[33,0,33,5],[34,0,34,5],[18,7,18,9],[37,6,37,11],[38,6,38,11],[39,6,39,11],[40,6,40,11],[30,6,30,11],[31,6,31,11],[32,6,32,11],[33,6,33,11],[34,6,34,11],[35,6,35,11],[19,7,19,9],[15,7,15,9],[16,7,16,9],[17,7,17,9],[29,6,29,11],[27,0,27,15],[28,14,28,15],[26,0,26,4],[30,0,30,5]]}
["PROGRAMMING COSTS"]
["ATTACHMENTS \"H1\""]
[]
["COUNTY: ",{"$f":"REQUEST!C4","v":0}]
[]
["Attachment \"H1\" documents costs for testing and transporting voting machines and electronic vote tabulating devices to and from the polls. WAGES OR SALARY OF PERMANENT FULL-TIME OR PERMANENT PART-TIME COUNTY EMPLOYEES ARE NOT ELIGIBLE FOR REIMBURSEMENT.                                                                                        "]
[]
["Section 5",null,null,null,null,null,null,"Section 6",null,null,null,null,null,"Section 7"]
["CONTRACT LABOR FOR TESTING VOTING EQUIPMENT",null,null,null,null,null,null,"CONTRACT LABOR FOR TRANSPORTING VOTING EQUIPMENT"]
["NAMES",null,null,"HOURS","RATE","WAGES",null,"NAMES",null,null,"HOURS","RATE","WAGES","MILES","RATE","EXPENSE"]
[null,null,null,null,null,{"$f":"D11*E11","v":0},null,null,null,null,null,11,{"$f":"K11*L11","v":0},null,null,{"$f":"N11*O11","v":0}]
[null,null,null,null,null,0,null,null,null,null,null,11,{"$f":"K12*L12","v":0},null,null,0]
[null,null,null,null,null,{"$f":"D13*E13","v":0},null,null,null,null,null,11,{"$f":"K13*L13","v":0},null,null,0]
[null,null,null,null,null,0,null,null,null,null,null,11,0,null,null,0]
[null,null,null,null,null,0,null,null,null,null,null,11,0,null,null,0]
[null,null,null,null,null,0,null,null,null,null,null,11,0,null,null,0]
[null,null,null,null,null,0,null,null,null,null,null,11,0,null,null,0]
[null,null,null,null,null,0,null,null,null,null,null,11,0,null,null,0]
[null,null,null,null,null,0,null,null,null,null,null,11,0,null,null,0]
[null,null,null,null,null,0,null,null,null,null,null,11,0,null,null,0]
[null,null,null,null,null,{"$f":"D21*E21","v":0},null,null,null,null,null,11,0,null,null,0]
[null,null,null,null,null,{"$f":"D22*E22","v":0},null,null,null,null,null,11,0,null,null,0]
[null,null,null,null,null,{"$f":"D23*E23","v":0},null,null,null,null,null,11,0,null,null,0]
[null,null,null,null,null,{"$f":"D24*E24","v":0},null,null,null,null,null,11,0,null,null,0]
[null,null,null,null,null,{"$f":"D25*E25","v":0},null,null,null,null,null,11,0,null,null,0]
["TOTALS",null,null,null,"(Maximum rate of $25 Hourly)",{"$f":"SUM(F11:F25)","v":0},null,"TOTALS",null,null,null,null,{"$f":"SUM(M11:M25)","v":0},null,null,{"$f":"SUM(P11:P25)","v":0}]
[null,null,null,null,null,"(Line 8d)",null,null,null,null,null,null,"(Line 8e)",null,null,"(Line 8f)"]
[]
["Section 8: TRUCK RENTAL FOR TRANSPORTING VOTING MACHINES & TABULATING DEVICES"]
["Truck 1",null,null,null,null,null," (Vendor invoice required for reimbursement)"]
["Truck 2",null,null,null,null,null," (Vendor invoice required for reimbursement)"]
["Truck 3",null,null,null,null,null," (Vendor invoice required for reimbursement)"]
["Truck 4",null,null,null,null,null," (Vendor invoice required for reimbursement)"]
["Truck 5",null,null,null,null,null," (Vendor invoice required for reimbursement)"]
["Truck 6",null,null,null,null,null," (Vendor invoice required for reimbursement)"]
["Truck 7",null,null,null,null,null," (Vendor invoice required for reimbursement)"]
["Truck 8",null,null,null,null,null," (Vendor invoice required for reimbursement)"]
["Truck 9",null,null,null,null,null," (Vendor invoice required for reimbursement)"]
["Truck 10",null,null,null,null,null," (Vendor invoice required for reimbursement)"]
["Truck 11",null,null,null,null,null," (Vendor invoice required for reimbursement)"]
["Truck 12",null,null,null,null,null," (Vendor invoice required for reimbursement)"]
["TOTAL",null,null,null,null,null,null,null,null,null,null,null,{"$f":"SUM(M30:M41)","v":0}]
[null,null,null,null,null,null,null,null,null,null,null,null,"(Line 8g)"]
["INSTRUCTIONS:"]
["Section 5: List the names of the individuals with whom the county contracted to test the voting equipment, record the hours worked, and their rate of pay up to a maximum of  $25 hourly. Wages will automatically calculate."]
[]
["Section 6: List the names of the individuals with whom the county contracted to transport the voting equipment to and from the polling sites and record the hours worked. Wages will automatically calculate at the current state minimum wage of $11.00 hourly."]
[]
["Section 7: Record the number of miles traveled in personal vehicles by the individuals with whom the county contracted to transport the voting equipment to and from the polling sites.  Record the rate at which the individuals were paid by the county up to the maximum rate of  $.52 per mile.  Mileage expense will automatically calculate."]
[]
["Section 8: Record any charge(s) for the rental of a truck(s)  from the supporting invoice(s). "]
[]
["Each “TOTAL” will automatically calculate. Each \"TOTAL\" on Attachment \"H1\" will then automatically post on the appropriate lines on the “SUMMARY OF COSTS” worksheet. The total on the \"SUMMARY OF COSTS\" worksheet will, in turn, automatically post on the appropriate line on the \"COUNTY REIMBURSEMENT REQUEST\" worksheet."]
[]
["RETURN ATTACHMENT \"H1\" ALONG WITH ANY REQUIRED INVOICES FOR PROGRAMMING COSTS CLAIMED"]

{"sheet":"I","index":16,"n_rows":44,"n_cols":14,"rows_kept":44,"cut":false,"hidden":false,"merged":[[34,0,34,14],[35,0,35,14],[32,0,32,14],[23,0,24,11],[26,0,26,13],[16,0,16,13],[43,0,44,14],[0,0,0,14],[1,0,1,14],[2,0,2,14],[3,0,3,1],[3,3,3,14],[4,0,4,14],[6,0,6,14],[36,0,36,14],[27,3,27,11],[28,3,28,11],[29,3,29,11],[25,0,25,11],[20,0,20,11],[5,0,5,14],[7,0,7,13],[40,0,40,14],[42,0,42,14],[41,0,41,14],[18,0,19,11],[14,3,14,7],[17,0,17,2],[33,0,33,14],[14,0,14,2],[30,0,31,11],[28,0,28,2],[29,0,29,2],[17,3,17,11],[22,3,22,11],[37,0,37,14],[38,0,38,14],[39,0,39,14],[8,0,8,2],[21,0,21,13],[12,10,12,13],[8,3,8,7],[8,9,8,13],[9,3,9,7],[13,10,13,13],[14,9,14,13],[27,0,27,2],[10,10,10,13],[11,10,11,13],[22,0,22,2],[15,0,15,14]]}
["BALLOT PRINTING COSTS"]
["ATTACHMENT “I” "]
[]
["COUNTY: ",null,{"$f":"REQUEST!C4","v":0}]
[]
["Attachment \"I\" contains tables for reporting statistics on numbers of voters and ballots and for reporting the cost of ballot stock, if any, ballot layout charges, and the cost for printing ballots. The State Board DOES NOT PROVIDE FUNDING FOR ballot printing reruns due to county or vendor error or for overages in ordering and printing ballots, except by prior written request to and approval by the State Board. Counties who primarily vote by paper ballot are required by law to provide a minimum number of ballots equivalent to one and one half times the number of  electors voting on paper ballots at the last preceding comparable election up to a maximum of one hundred five percent of the total number of registered voters.                                                                                                                                                  Counties who primarlily vote by voting machine are eligible to receive reimbursement from the state for a number of ballots equivalent to one and one half times the number of electors voting on paper ballots at the last preceding comparable election, up to a maximum of one half of the total number of electors voting at the last preceding comparable election. Counties are eligible to receive reimbursement for a number of \"special runoff ballots\" equivalent to a maximum of one and one half times the total number of overseas absentee ballot requests received at the last preceding comparable election or one and one half times the total number of overseas absentee voters voting on paper ballots at the last preceding comparable election, whichever is greater.  "]
[]
["Section 1: VOTER AND BALLOT STATISTICS"]
[null,null,null,"Last Comparable Election",null,null,null,null,null,"Current Election"]
["Number of registered voters:",null,null,null,null,null,null,null,null,null,"x",1.05,"=",{"$f":"J10*L10","v":0}]
["Number of persons voting:",null,null,null,"x",0.5,"=",{"$f":"D11*F11","v":0}]
["Number of persons voting by paper ballot:",null,null,null,"x",1.5,"=",{"$f":"D12*F12","v":0}]
["Number of overseas absentee ballot requests:",null,null,null,"x",1.5,"=",{"$f":"D13*F13","v":0}]
["Number of overseas absentee paper ballots cast:",null,null,null,"x",1.5,"=",{"$f":"D14*F14","v":0}]
[]
[]
["Section 2: BALLOT STOCK  (may only receive funding for quantities applicable to this election)"]
["Ballot Code Stock Purchase ",null,null,"(Vendor invoice required for reimbursement)",null,null,null,null,null,null,null,null,"$"]
["TOTAL",null,null,null,null,null,null,null,null,null,null,null,"$",{"$f":"N18","v":0}]
[null,null,null,null,null,null,null,null,null,null,null,null,null,"(Line 9a)"]
[]
["Section 3: BALLOT LAYOUT"]
["Ballot Layout ",null,null,"(Vendor invoice required for reimbursement)",null,null,null,null,null,null,null,null,"$"]
["TOTAL",null,null,null,null,null,null,null,null,null,null,null,"$",{"$f":"N23","v":0}]
[null,null,null,null,null,null,null,null,null,null,null,null,null,"(Line 9b)"]
[]
["Section 4: BALLOT PRINTING"]
["Ballot Invoice 1 ",null,null,"(Vendor invoice required for reimbursement)",null,null,null,null,null,null,null,null,"$"]
["Ballot Invoice 2",null,null,"(Vendor invoice required for reimbursement)",null,null,null,null,null,null,null,null,"$"]
["Ballot Invoice 3 ",null,null,"(Vendor invoice required for reimbursement)",null,null,null,null,null,null,null,null,"$"]
["TOTAL",null,null,null,null,null,null,null,null,null,null,null,"$",{"$f":"SUM(N28:N30)","v":0}]
[null,null,null,null,null,null,null,null,null,null,null,null,null,"(Line 9c)"]
["INSTRUCTIONS:"]
["Section 1: Record statistics on numbers of voters and ballots on the appropriate lines."]
[]
["Section 2: Record any charge for ballot stock from the supporting vendor invoice. "]
[]
["Section 3: Record the charge for ballot layout from the supporting vendor invoice. "]
[]
["Section 4: Record the charge(s) for printing ballots from the supporting vendor invoice(s). "]
[]
["Each “TOTAL” will automatically calculate. Each \"TOTAL\" on Attachment \"I\" will then automatically post on the appropriate lines on the “SUMMARY OF COSTS” worksheet. The total on the \"SUMMARY OF COSTS\" worksheet will, in turn, automatically post on the appropriate line on the \"COUNTY REIMBURSEMENT REQUEST\" worksheet."]
[]
["RETURN ATTACHMENT \"I\" ALONG WITH INVOICES FOR ALL BALLOT PRINTING COSTS CLAIMED"]

{"sheet":"J","index":17,"n_rows":56,"n_cols":10,"rows_kept":56,"cut":false,"hidden":false,"merged":[[53,0,53,9],[52,0,52,9],[41,0,41,9],[37,0,37,4],[39,0,39,1],[39,2,39,7],[44,5,44,7],[19,0,19,4],[36,5,36,7],[18,5,18,7],[31,0,31,7],[38,0,38,4],[29,0,29,4],[27,5,27,7],[26,0,26,4],[38,5,38,7],[35,5,35,7],[35,0,35,4],[34,0,34,4],[29,5,29,7],[30,0,30,1],[27,0,27,4],[28,5,28,7],[33,0,33,9],[45,0,45,4],[48,0,48,1],[50,0,50,9],[46,0,46,4],[47,0,47,4],[43,5,43,7],[44,0,44,4],[34,5,34,7],[36,0,36,4],[42,0,42,9],[40,0,40,7],[37,5,37,7],[9,5,9,7],[9,0,9,4],[10,0,10,4],[25,8,25,9],[8,5,8,7],[11,0,11,4],[18,0,18,4],[12,2,12,7],[16,0,16,4],[24,0,24,9],[20,0,20,4],[25,0,25,4],[22,0,22,7],[25,5,25,7],[13,0,13,7],[19,5,19,7],[23,0,23,9],[21,0,21,1],[26,5,26,7],[55,0,55,9],[43,0,43,4],[45,5,45,7],[46,5,46,7],[47,5,47,7],[49,0,49,7],[54,0,54,9],[48,2,48,7],[34,8,34,9],[28,0,28,4],[43,8,43,9],[51,0,51,9],[32,0,32,9],[0,0,0,9],[1,0,1,9],[2,2,2,3],[2,4,2,9],[5,0,5,9],[2,0,2,1],[3,0,3,9],[6,0,6,9],[20,5,20,7],[7,5,7,7],[16,5,16,7],[4,0,4,9],[17,5,17,7],[12,0,12,1],[15,0,15,9],[8,0,8,4],[7,0,7,4],[14,0,14,9],[16,8,16,9],[17,0,17,4],[10,5,10,7],[11,5,11,7],[7,8,7,9]]}
["LEGAL ADVERTISING COSTS"]
["ATTACHMENT “J” for Primary Runoff Elections"]
["COUNTY: ",null,{"$f":"REQUEST!C4","v":0}]
[]
["Attachment “J” documents costs for advertising that is legally required to be published in a newspaper of general circulation.  Eligible costs include funding for 2 publications of the public notice of the election (contains the date of the election, the hours of voting on election day, the places and times for early voting, polling sites for holding the election, the candidates and offices to be elected, and the time and location for the opening, processing, canvassing, and counting of ballots),funding for 1 publication of the notice of the time and place the voting machines will be prepared, funding for 1 publication of the time and place for voting equipment testing. There is no drawing for ballot position for runoff elections.  The ballot order for eligible candidates is the same as for the primary.  Invoices and Proof(s) of Publication provided by the publisher are required for reimbursement. NO OTHER ADVERTISING IS ELIGIBLE FOR REIMBURSEMENT.                                                                              "]
[]
["Section 1: PUBLIC NOTICE OF BALLOT POSITION DRAWING "]
["NAME OF NEWSPAPER",null,null,null,null,"DATE OF PUBLICATION",null,null,"COST"]
[null,null,null,null,null,null,null,null,"$"]
[null,null,null,null,null,null,null,null,"$"]
[null,null,null,null,null,null,null,null,"$"]
[null,null,null,null,null,null,null,null,"$"]
["TOTAL",null,"(Invoice(s) and Proof(s) of Publication required for reimbursement)",null,null,null,null,null,"$",{"$f":"SUM(J9:J12)","v":0}]
[null,null,null,null,null,null,null,null,null,"(Line 10a)"]
[]
["Section 2: PUBLIC NOTICE OF THE ELECTION (1st Publication)"]
["NAME OF NEWSPAPER",null,null,null,null,"DATE OF PUBLICATION",null,null,"COST"]
[null,null,null,null,null,null,null,null,"$"]
[null,null,null,null,null,null,null,null,"$"]
[null,null,null,null,null,null,null,null,"$"]
[null,null,null,null,null,null,null,null,"$"]
["TOTAL",null,null,null,null,null,null,"(Invoice(s) and Proof(s) of Publication required for reimbursement)","$",{"$f":"SUM(J18:J21)","v":0}]
[null,null,null,null,null,null,null,null,null,"(Line 10b)"]
[]
["Section 3: PUBLIC NOTICE OF THE ELECTION (2nd Publication)"]
["NAME OF NEWSPAPER",null,null,null,null,"DATE OF PUBLICATION",null,null,"COST"]
[null,null,null,null,null,null,null,null,"$"]
[null,null,null,null,null,null,null,null,"$"]
[null,null,null,null,null,null,null,null,"$"]
[null,null,null,null,null,null,null,null,"$"]
["TOTAL",null,null,null,null,null,null,"(Invoice(s) and Proof(s) of Publication required for reimbursement)","$",{"$f":"SUM(J27:J30)","v":0}]
[null,null,null,null,null,null,null,null,null,"(Line 10c)"]
[]
["Section 4: PUBLIC NOTICE OF VOTING EQUIPMENT PREPARATION  "]
["NAME OF NEWSPAPER",null,null,null,null,"DATE OF PUBLICATION",null,null,"COST"]
[null,null,null,null,null,null,null,null,"$"]
[null,null,null,null,null,null,null,null,"$"]
[null,null,null,null,null,null,null,null,"$"]
[null,null,null,null,null,null,null,null,"$"]
["TOTAL",null,"(Invoice(s) and Proof(s) of Publication required for reimbursement)",null,null,null,null,null,"$",{"$f":"SUM(J36:J39)","v":0}]
[null,null,null,null,null,null,null,null,null,"(Line 10d)"]
[]
["Section 5: PUBLIC NOTICE OF VOTING EQUIPMENT TESTING"]
["NAME OF NEWSPAPER",null,null,null,null,"DATE OF PUBLICATION",null,null,"COST"]
[null,null,null,null,null,null,null,null,"$"]
[null,null,null,null,null,null,null,null,"$"]
[null,null,null,null,null,null,null,null,"$"]
[null,null,null,null,null,null,null,null,"$"]
["TOTAL",null,"(Invoice(s) and Proof(s) of Publication required for reimbursement)",null,null,null,null,null,"$",{"$f":"SUM(J45:J48)","v":0}]
[null,null,null,null,null,null,null,null,null,"(Line 10e)"]
["INSTRUCTIONS:"]
["Sections 1 - 5: Using the supporting invoices, record the name of the newspaper and the date (such as 02/10/22) and cost of the publication on the appropriate lines. "]
[]
["Each “TOTAL” will automatically calculate. Each \"TOTAL\" on Attachment \"J\" will then automatically post on the appropriate lines on the “SUMMARY OF COSTS” worksheet. The total on the \"SUMMARY OF COSTS\" worksheet will, in turn, automatically post on the appropriate line on the \"COUNTY REIMBURSEMENT REQUEST\" worksheet."]
[]
["RETURN ATTACHMENT \"J\" ALONG WITH INVOICES AND PROOF(S) OF PUBLICATION PROVIDED BY THE PUBLISHER FOR ALL ADVERTISING COSTS CLAIMED"]

{"sheet":"K","index":18,"n_rows":36,"n_cols":9,"rows_kept":36,"cut":false,"hidden":false,"merged":[[0,0,0,10],[34,0,34,8],[1,0,1,10],[2,3,2,10],[3,0,3,10],[5,0,5,10],[12,9,12,10],[2,1,2,2],[8,9,8,10],[23,7,23,8],[4,0,4,10],[6,9,6,10],[7,9,7,10],[9,9,9,10],[10,9,10,10],[11,9,11,10],[13,9,13,10],[14,9,14,10],[23,9,23,10],[24,9,24,10],[25,9,25,10],[15,9,15,10],[16,9,16,10],[17,9,17,10],[18,9,18,10],[19,9,19,10],[20,9,20,10],[32,0,32,10],[33,0,33,10],[35,0,36,10],[27,9,27,10],[21,0,21,10],[28,0,28,10],[29,0,29,10],[31,0,31,10],[30,0,30,10],[22,9,22,10],[26,9,26,10],[26,1,26,3],[26,4,26,6],[27,1,27,6],[25,1,25,8],[6,1,6,8],[18,1,18,8],[19,2,19,6],[20,1,20,6],[22,1,22,8]]}
["FACILITY FEES"]
["ATTACHMENT “K” "]
["COUNTY: ",{"$f":"REQUEST!C4","v":0}]
[]
["Attachment \"K\" contains tables for computing eligible facility fee reimbursement. Eligible facilty fees are defined as fees charged by a facility to offset the cost of using their facility as an election day poll or as an off-site early voting poll. A county must provide the State Board with a copy of an invoice from each facility to be eligible to receive funding of up to a maximum of $40 per facility per day. Overall reimbursement for off-site early voting facilities is capped at $4,000 per state-funded election."]
[]
[null,"Section 1: OFF-SITE EARLY VOTING"]
[null,"Polls",null,"Days",null,"Rate",null,null,"Fee"]
[null,null,"x",null,"x",null,"=","$",{"$f":"B9*D9*F9","v":0}]
[null,null,"x",null,"x",null,"=","$",{"$f":"B10*D10*F10","v":0}]
[null,null,"x",null,"x",null,"=","$",0]
[null,null,"x",null,"x",null,"=","$",0]
[null,null,"x",null,"x",null,"=","$",0]
[null,null,"x",null,"x",null,"=","$",0]
[null,null,"x",null,"x",null,"=","$",0]
[null,null,"x",null,"x",null,"=","$",0]
[null,null,"x",null,"x",null,"=","$",0]
[null,null,"x",null,"x",null,"=","$",0]
[]
[null,"TOTAL","(MAXIMUM RATE OF $40/MAXIMUM $4,000 PAYOUT)",null,null,null,null,"$",{"$f":"SUM(I9:I18)","v":0}]
[null,"(Invoice from each facility required for reimbursement)",null,null,null,null,null,null,"(Line 11a)"]
[]
[null,"Section 2: ELECTION DAY "]
[null,"Polls",null,"Days",null,"Rate",null,"Fee"]
[null,null,"x",1,"x",null,"=","$",{"$f":"B25*D25*F25","v":0}]
[]
[null,"TOTAL",null,null,"(MAXIMUM RATE OF $40)",null,null,"$",{"$f":"SUM(I25:I25)","v":0}]
[null,"(Invoice from each facility required for reimbursement)",null,null,null,null,null,null,"(Line 11b)"]
["INSTRUCTIONS:"]
["Section 1: Record the number one (1) under the \"Polls\" column for each off-site early voting polling location. Record the number of days that off-site early voting was held at each poll. Record the rate at which each poll was compensated by the county up to the maximum rate of $40 per poll. Each facility fee will automatically calculate."]
[]
["Section 2: Record the total number of election day polls under the \"Polls\" column and the rate at which they were compensated by the county up to the maximum rate of $40 per poll. For those counties that combine multiple polling sites (not precincts) within a single facility on election day such as an auditorium, each separate location within the single facility where voters identify themselves to poll workers for the purpose of casting a ballot would constitute a polling site. The facility fee will automatically calculate."]
[]
["Each“TOTAL” will automatically calculate. Each \"TOTAL\" on Attachment \"K\" will then automatically post on the appropriate lines on the “SUMMARY OF COSTS” worksheet. The total on the \"SUMMARY OF COSTS\" worksheet will, in turn, automatically post on the appropriate line on the \"COUNTY REIMBURSEMENT REQUEST\" worksheet."]
[]
["RETURN ATTACHMENT \"K\" AND INVOICES WITH THE                                                                 COUNTY'S REIMBURSEMENT REQUEST"]

{"sheet":"Sheet3","index":19,"n_rows":0,"n_cols":0,"rows_kept":0,"cut":false,"hidden":false,"merged":[]}